Workbook

Sheet TitlePage
A1: Title page
B6: S | C6: Hexachlorobenzene in Picloram CUSTOM WORKBOOK
E17: WorksheetMaker Version | F17: 6.00.07
A51: 2011-06-28

Sheet Disclaimer
A1: DISCLAIMER

Sheet General Notes
A1: General Notes
B2: Prepared by: | C2: Patrick R Durkin
B3: Program Version: | C3: 6.00.07
B4: Database Used: | C4: FS WsMkr V06-00-01.mdb
B5: Template Workbook: | C5: FS WsMkr V06-00-01.mdb
B6: Base Workbook: | C6: FS WSMkr Blank V06-00-01.xlsm
A8: Color Codes in WorksheetMaker
A13: Color Codes used in Workbook for Front Matter, Data and Calculation Worksheets
B14: Green shading | C14: This is a default value or a user specified a value. You can change these values as you see fit but you should have a reason for doing so.
B15: Yellow shading | C15: This is a source for a link in other parts of the workbook. If you have good reason to change the value, you should note the change (with your reason) in the “Revisions” page.
B16: Blue shading | C16: This cell is linked to another cell in the workbook. Do not change this value. If you change any of these values, the workbook may not update correctly.
B17: Blue shading blue border | C17: This cell is linked to a Program parameter in Worksheet A01. Do not change this value. If you want the value to change, go to Worksheet A01 and change the value in that worksheet.
B18: Purple Shading | C18: Indicates (for information only) that the typical of order of Lower and Upper values is intentionally reversed. This is only used in the second (label) column.
B19: Italics, no shading | C19: The value in this cell is generated by a formula (the number that you see is the result of an equation). This cell is linked only to other cells in the worksheet. Do not change this value.
A25: Color Codes used in Workbook for Risk Characterization Worksheets
B26: HQ ≥ 2 | C26: For hazard quotient greater than 2, the number is in bold font with a red background and rounded to the nearest integer.
B27: HQ > 1 but < 2 | C27: For hazard quotient greater than 1 but less than two, the number is in bold font with a white background and rounded to one significant place after the decimal.
B28: HQ ≥ 0.1 but <1 | C28: For hazard quotient greater than 0.1 but less than one, the number is in regular font with a white background and rounded to one significant place after the decimal.
B29: HQ < 0.1 | C29: For hazard quotient less than 0.1, the number is in regular font with a white background. The number is expressed in scientific notation and rounded to one significant place -- e.g., 2E-02 rather than 0.02.
B55: Prepared by: | C55: Patrick R Durkin
B56: Program Version: | C56: 6.00.07
B57: Database Used: | C57: FS WsMkr V06-00-01.mdb
B58: Template Workbook: | C58: FS WsMkr V06-00-01.mdb
B59: Base Workbook: | C59: FS WSMkr Blank V06-00-01.xlsm

Sheet Chemical Notes
A1: Chemical specific notes
A2: Risk Assessment: | D2: SERA TR-052-27-03a
A3: Report Date: | D3: 2003-09-21
A6: The area below is an embedded MS Word Document. Add chemical-specific notes as appropriate.

Sheet Revisions
A1: Revision Histroy
A8: The area below is an embedded MS Word Document. Add revision notes as appropriate.

Sheet Contents
B1: Table of Contents | C1: Toc
A2: Work-sheet No. | B2: Worksheet Title
A3: TitlePage | B3: Title page
A4: Disclaimer | B4: DISCLAIMER
A5: General Notes | B5: General Notes
A6: Chemical Notes | B6: Chemical specific notes
A7: Revisions | B7: Revision Histroy
A8: Contents
A9: A01 | B9: Program Data: Application rates, application volumns, and concentrations in field solutions
A10: A02a | B10: General reference values and exposure factors used in worksheets.
A11: A02b | B11: General reference values and exposure factors used in worksheets.
A12: A02c | B12: General reference values and exposure factors used in worksheets.
A13: A02d | B13: General reference values and exposure factors used in worksheets.
A14: A03 | B14: Consumption values used in worksheets
A15: B01 | B15: Chemical and Physical Properties for Picloram
A16: B02 | B16: Toxicity values for Picloram
A17: B03a | B17: Calculation of Zero-Order Dermal Permeability Rate (Kp) in cm/hour
A18: B03b | B18: Calculation of First-Order Dermal Absorption Rate
A19: B04Rt | B19: Estimates of Water Contamination Rates -- i.e., the concentration in ambient water per pound applied per acre
A20: B04a | B20: Expected Concentrations in Surface Water
A21: B04b | B21: Pond: Concentration of pesticide (liquid formulation) in pond water after an accidental spill
A22: B04c | B22: Concentration in pond water after direct spray or after drift at distances downwind in feet from the application site
A23: B04d | B23: Concentration in stream water after direct spray or after drift at distances downwind in feet from the application site
A24: B05a | B24: Concentration of Pesticide in Contaminated Fruit
A25: B05b | B25: Concentration of Pesticide in Contaminated Broadleaf Vegetation
A26: C01a | B26: Exposure estimates for Backpack Worker based on the amount of material handled per day
A27: C01b | B27: Exposure estimates for Ground Boom Worker based on the amount of material handled per day
A28: C01c | B28: Exposure estimates for Aerial Spray Worker based on the amount of material handled per day
A29: D04a | B29: Consumption of Fruit by a Adult Female, Chronic exposure.
A30: D04b | B30: Consumption of Vegetation by a Adult Female, Chronic exposure.
A31: D07 | B31: Consumption of contaminated water by Adult Male, Longer-term Conentrations
A32: D09a | B32: Consumption of Contaminated Fish (Longer-term), Adult Male, chronic exposure
A33: D09b | B33: Consumption of Contaminated Fish (Longer-term), Subsistence Populations, chronic exposure
A34: E01 | B34: Worksheet E01: Summary of Worker Exposure Assessments
A35: E02 | B35: Worksheet E01: Summary of Worker Hazard Quotients (Toxicity)
A36: E03 | B36: Worksheet E03: Summary of Exposure Assessments for the General Public
A37: E04 | B37: Worksheet E03: Summary of Hazard Quotients (Toxicity) for the General Public
A38: References | B38: References cited in workbook
A39: PlntRunoV5 | B39: Summary of Exposure Assessment and Risk Characterization for Terrestrial Plants from Runoff

Sheet A01
A1: Program Data: Application rates, application volumns, and concentrations in field solutions
A2: Parameter/Assumption | B2: Code / Range | C2: Equation/ Value | D2: Units | E2: Reference/ Equation
A3: Application Rate | B3: ApRt | C3: 3e-06 | D3: lb/acre | E3: Program Input
A4: Application Volume | B4: ApVol
B5: Central | C5: 30 | D5: gal/acre | E5: Program Input
B6: Upper | C6: 100 | E6: Program Input
B7: Lower | C7: 5 | E7: Program Input
A8: Concentration in field solution (lb/gal) | B8: Concppg | C8: ApRt (lb/acre) / ApVol (gal/acre) | E8: Note 1
B9: Central | C9: =IF(C5>0, C$3/C5, "N/A") -> 1e-07 | D9: lb/gal | E9: Eq
B10: Lower | C10: =IF(C6>0, C$3/C6, "N/A") -> 3e-08 | E10: Eq
B11: Upper | C11: =IF(C7>0, C$3/C7, "N/A") -> 6e-07 | E11: Eq
A12: Conversion Factor for lbs/gal to mg/mL | B12: CnvF | C12: 119.8 | D12: mg/mL per lb/gal
A13: Concentration in field solution (mg/mL) | B13: FldConc | C13: Concppg * CnvF | E13: Note 2
B14: Central | C14: =IF(C5>0, DigitRound( C9*C$12, C$17), "NA") -> 1.2e-05 | D14: mg/mL | E14: Eq
B15: Lower | C15: =IF(C6>0, DigitRound( C10*C$12, C$17), "NA") -> 3.6e-06 | E15: Eq
B16: Upper | C16: =IF(C7>0, DigitRound( C11*C$12, C$17), "NA") -> 7.2e-05 | E16: Eq
A17: Number of significant figures used for FldConc. | B17: NSig | C17: 2
A20: Number of Applications | B20: nApps | C20: 1 | D20: Unitless | E20: Program Input
A21: Application Interval | B21: ApIntv | C21: 1 | D21: Days | E21: Program Input
A22: Standard Values/Options for Scenarios
A23: Years of Exposure | B23: ExpYr | C23: 6 | D23: Years | E23: Risk assessment.
A24: Lifespan | B24: LS | C24: 70 | D24: Years | E24: Risk assessment.
A25: Surface area of pond for spill | B25: PondSA_M | C25: 1000 | D25: Sq. Meters | E25: Risk assessment.
A26: Pond depth | B26: PondDepthM | C26: 1 | D26: Meters | E26: Risk assessment.
A27: Stream flow rate for drift scenario | B27: StreamFlowLD | C27: 710000 | D27: Liters/day | E27: Risk assessment.
A28: Stream length for drift scenario | B28: StreamLengthFt | C28: 1038 | D28: Feet | E28: Risk assessment.
A29: Stream width for drift scenario | B29: StreamWidthFt | C29: 6 | D29: Feet | E29: Risk assessment.
A30: Duration for longer-term exposures | B30: SubChDays | C30: 365 | D30: Days | E30: Risk assessment.
A31: Duration for swimming scenarios | B31: SwimMin | C31: 60 | D31: Minutes | E31: Risk assessment.
A32: Protection factor for workers based on PPE. | B32: WrkProtectFact
B33: Central | C33: 0 | E33: Risk assessment.
B34: Lower | C34: 0
B35: Upper | C35: 0
A36: Toxic Equivalency Factor for formulation | B36: TEF
B37: Central | C37: 1 | E37: Risk assessment.
B38: Lower | C38: 1
B39: Upper | C39: 1
A40: Used in food commody worksheets | B40: DriftToFood
B41: Central | C41: 1 | E41: Risk assessment.
B42: Lower | C42: 1
B43: Upper | C43: 1
A44: Amount spilled into ponds | B44: PondSpillVolGal
B45: Central | C45: 100 | D45: Gal | E45: Risk assessment.
B46: Lower | C46: 20
B47: Upper | C47: 200
A48: Dislodgeable residue, as a proportion of the application rate. | B48: DislogRes
B49: Central | C49: 0.1 | E49: Risk assessment.
B50: Lower | C50: 0.1
B51: Upper | C51: 0.1
A52: Residue rates for short grass | B52: VegRRSGT
B53: Central | C53: 85 | D53: ppm per lb/ac | E53: Risk assessment.
B54: Lower | C54: 30
B55: Upper | C55: 240
A56: Residue rates for long grass | B56: VegRRTGT
B57: Central | C57: 36 | D57: ppm per lb/ac | E57: Risk assessment.
B58: Lower | C58: 12
B59: Upper | C59: 110
A60: Residue rates for broadleaf/forage plants and small insects | B60: VegRRBLT
B61: Central | C61: 45 | D61: ppm per lb/ac | E61: Risk assessment.
B62: Lower | C62: 15
B63: Upper | C63: 135
A64: Residue rates for fruit | B64: VegRRFRT
B65: Central | C65: 7 | D65: ppm per lb/ac | E65: Risk assessment.
B66: Lower | C66: 3.2
B67: Upper | C67: 15
A68: Worker Exposure Rate | B68: WrkExpRate
B69: Central | C69: 0.003 | D69: Mg/kg bw per lb | E69: Risk assessment.
B70: Lower | C70: 0.0003
B71: Upper | C71: 0.01
A72: Number of acres that the worker will treat per hour. | B72: WrkAcPerHr
B73: Central | C73: 0.625 | D73: Acres/hr | E73: Risk assessment.
B74: Lower | C74: 0.25
B75: Upper | C75: 1
A76: Number of hours of worker exposure per day. | B76: WrkHsPerDy
B77: Central | C77: 7 | D77: Hrs/day | E77: Risk assessment.
B78: Lower | C78: 6
B79: Upper | C79: 8

Sheet A02a
A1: General reference values and exposure factors used in worksheets.
A3: Receptor | B3: Factor | C3: Value | D3: Units | E3: Reference | F3: Reference Note
A4: Adult Female | B4: Body weight | C4: 64 | D4: kg | E4: U.S. EPA/ORD 1985 | F4: page 5, Table 2-2
A5: Adult Female | B5: Surface Area, Feet and lower Legs | C5: 2915 | D5: cm2 | E5: U.S. EPA/ORD 1992 | F5: p. 8-11, Table 8-3, total for feet and lower legs
A6: Adult Female | B6: Surface Area, Wearing shorts and T-shirt | C6: 5300 | D6: cm2 | E6: U.S. EPA/ORD 1992 | F6: p. 8-11, Table 8-3, total for arms, hands, lower legs, and feet.
A7: Adult Female | B7: Surface Area, Whole body | C7: 16900 | D7: cm2 | E7: U.S. EPA/ORD 1997 | F7: p. 6-13, Table 6-3, whole body, 50th percentile
A8: Adult Male | B8: Body weight | C8: 70 | D8: kg | E8: ICRP 1975 | F8: p. 13.
A9: Subsistence Populations | B9: Body weight | C9: 70 | D9: kg | E9: ICRP 1975 | F9: p. 13
A10: Worker, Aerial Spray | B10: Absorbed dose rate, central estimate | C10: 3e-05 | D10: (mg/kg bw)/(lbs handled per day) | E10: SERA 2007 | F10: Acres treated per hour
A11: Worker, Aerial Spray | B11: Absorbed dose rate, lower range | C11: 1e-06 | D11: (mg/kg bw)/(lbs handled per day) | E11: SERA 2007 | F11: Acres treated per hour
A12: Worker, Aerial Spray | B12: Absorbed dose rate, upper range | C12: 0.0001 | D12: (mg/kg bw)/(lbs handled per day) | E12: SERA 2007 | F12: Acres treated per hour
A13: Worker, Aerial Spray | B13: Hours of application per day, central estimate | C13: 7 | D13: Hours per day | E13: USDA 1989a | F13: N/A
A14: Worker, Aerial Spray | B14: Hours of application per day, lower range | C14: 6 | D14: Hours per day | E14: USDA 1989a | F14: N/A
A15: Worker, Aerial Spray | B15: Hours of application per day, upper range | C15: 8 | D15: Hours per day | E15: USDA 1989a | F15: N/A
A16: Worker, Aerial Spray | B16: Acres treated per hour, central estimate | C16: 70 | D16: acres/hour | E16: USDA 1989a | F16: Acres treated per hour
A17: Worker, Aerial Spray | B17: Acres treated per hour, lower range | C17: 40 | D17: acres/hour | E17: USDA 1989a | F17: Acres treated per hour
A18: Worker, Aerial Spray | B18: Acres treated per hour, upper range | C18: 100 | D18: acres/hour | E18: USDA 1989a | F18: Acres treated per hour
A19: Worker, Backpack | B19: Absorbed dose rate, central estimate | C19: 0.003 | D19: (mg/kg bw)/(lbs handled per day) | E19: SERA 2007 | F19: Acres treated per hour
A20: Worker, Backpack | B20: Absorbed dose rate, lower range | C20: 0.0003 | D20: (mg/kg bw)/(lbs handled per day) | E20: SERA 2007 | F20: Acres treated per hour
A21: Worker, Backpack | B21: Absorbed dose rate, upper range | C21: 0.01 | D21: (mg/kg bw)/(lbs handled per day) | E21: SERA 2007 | F21: Acres treated per hour
A22: Worker, Backpack | B22: Hours of application per day, central estimate | C22: 7 | D22: Hours per day | E22: USDA 1989a | F22: N/A
A23: Worker, Backpack | B23: Hours of application per day, lower range | C23: 6 | D23: Hours per day | E23: USDA 1989a | F23: N/A
A24: Worker, Backpack | B24: Hours of application per day, upper range | C24: 8 | D24: Hours per day | E24: USDA 1989a | F24: N/A
A25: Worker, Backpack | B25: Acres treated per hour, central estimate | C25: 0.625 | D25: acres/hour | E25: USDA 1989a | F25: Acres treated per hour
A26: Worker, Backpack | B26: Acres treated per hour, lower range | C26: 0.25 | D26: acres/hour | E26: USDA 1989a | F26: Acres treated per hour
A27: Worker, Backpack | B27: Acres treated per hour, upper range | C27: 1 | D27: acres/hour | E27: USDA 1989a | F27: Acres treated per hour
A28: Child | B28: Body weight | C28: 13.3 | D28: kg | E28: U.S. EPA/ORD 1996 | F28: p. 7-1, Table 7-2
A29: Child | B29: Surface Area, Whole body | C29: 6030 | D29: cm2 | E29: U.S. EPA/ORD 1996 | F29: p. 6-15, Table 6-6, 50th percentile.
A30: Worker, Ground Spray | B30: Absorbed dose rate, central estimate | C30: 0.0002 | D30: (mg/kg bw)/(lbs handled per day) | E30: SERA 2007 | F30: Acres treated per hour
A31: Worker, Ground Spray | B31: Absorbed dose rate, lower range | C31: 1e-05 | D31: (mg/kg bw)/(lbs handled per day) | E31: SERA 2007 | F31: Acres treated per hour
A32: Worker, Ground Spray | B32: Absorbed dose rate, upper range | C32: 0.0009 | D32: (mg/kg bw)/(lbs handled per day) | E32: SERA 2007 | F32: Acres treated per hour
A33: Worker, Ground Spray | B33: Hours of application per day, central estimate | C33: 7 | D33: Hours per day | E33: USDA 1989a | F33: N/A
A34: Worker, Ground Spray | B34: Hours of application per day, lower range | C34: 6 | D34: Hours per day | E34: USDA 1989a | F34: N/A
A35: Worker, Ground Spray | B35: Hours of application per day, upper range | C35: 8 | D35: Hours per day | E35: USDA 1989a | F35: N/A
A36: Worker, Ground Spray | B36: Acres treated per hour, central estimate | C36: 16 | D36: acres/hour | E36: USDA 1989a | F36: Acres treated per hour
A37: Worker, Ground Spray | B37: Acres treated per hour, lower range | C37: 11 | D37: acres/hour | E37: USDA 1989a | F37: Acres treated per hour
A38: Worker, Ground Spray | B38: Acres treated per hour, upper range | C38: 21 | D38: acres/hour | E38: USDA 1989a | F38: Acres treated per hour
A39: Worker | B39: Body weight | C39: 70 | D39: kg | E39: ICRP 1975 | F39: p. 13
A40: Worker | B40: Surface Area, Hands | C40: 840 | D40: cm2 | E40: U.S. EPA/ORD 1992 | F40: p. 8-11
A41: Worker | B41: Surface Area, Lower legs | C41: 2070 | D41: cm2 | E41: U.S. EPA/ORD 1992 | F41: p. 8-11

Sheet A02b
A1: General reference values and exposure factors used in worksheets.
A3: Receptor | B3: Factor | C3: Value | D3: Units | E3: Reference | F3: Reference Note
A4: Amphibian | B4: Kilocalories, alpha parameter for allometric equation | C4: 0.054 | D4: BW(g),Kcal (kcal/day) | E4: U.S. EPA/ORD 1993 | F4: p. 3-7, equation 3-14
A5: Amphibian | B5: Kilocalories, beta parameter for allometric equation | C5: 0.799 | D5: BW(g),Kcal (kcal/day) | E5: U.S. EPA/ORD 1993 | F5: p. 3-7, equation 3-14
A6: Amphibian, bull frog | B6: Food consumption, alpha parameter for allometric equation | C6: 1.09 | D6: BW(g),FC(g) | E6: SERA 2010 | F6: Figure 15
A7: Amphibian, bull frog | B7: Food consumption, beta parameter for allometric equation | C7: 0.1723 | D7: BW(g),FC(g) | E7: SERA 2010 | F7: Figure 15
A8: Bird, NOS | B8: Food consumption, alpha parameter for allometric equation | C8: 0.648 | D8: BW(g),FC(g) | E8: U.S. EPA/ORD 1993 | F8: Eq. 3-3, p. 3-4, all birds
A9: Bird, NOS | B9: Food consumption, beta parameter for allometric equation | C9: 0.651 | D9: BW(g),FC(g) | E9: U.S. EPA/ORD 1993 | F9: Eq. 3-3, p. 3-4, all birds
A10: Bird, carnivorous | B10: Body weight | C10: 0.64 | D10: kg | E10: Dunning 1993 | F10: p. 97. Female Spotted Owl (Strix occidentalis). Range of 548 to 760 g.
A11: Bird, carnivorous | B11: Kilocalories, alpha parameter for allometric equation | C11: 1.146 | D11: BW(g),KCal(kcal/day) | E11: U.S. EPA/ORD 1993 | F11: Eq. 3-37, nonpasserines
A12: Bird, carnivorous | B12: Kilocalories, beta parameter for allometric equation | C12: 0.749 | D12: BW(g),KCal(kcal/day) | E12: U.S. EPA/ORD 1993 | F12: Eq. 3-37, nonpasserines
A13: Bird, carnivorous | B13: Water consumption, alpha parameter for allometric equation | C13: 0.059 | D13: BW(kg), WC(L) | E13: U.S. EPA/ORD 1993 | F13: Eq. 3-15, p. 3-8
A14: Bird, carnivorous | B14: Water consumption, beta parameter for allometric equation | C14: 0.67 | D14: BW(kg), WC(L) | E14: U.S. EPA/ORD 1993 | F14: Eq. 3-15, p. 3-8
A15: Bird, large | B15: Body weight | C15: 4 | D15: kg | E15: Default | F15: Canada goose
A16: Bird, large | B16: Kilocalories, alpha parameter for allometric equation | C16: 1.146 | D16: BW(g),KCal(kcal/day) | E16: U.S. EPA/ORD 1993 | F16: Eq. 3-37, non-passerines
A17: Bird, large | B17: Kilocalories, beta parameter for allometric equation | C17: 0.749 | D17: BW(g),KCal(kcal/day) | E17: U.S. EPA/ORD 1993 | F17: Eq. 3-37, non-passerines
A18: Bird, large | B18: Water consumption, alpha parameter for allometric equation | C18: 0.059 | D18: BW(kg), WC(L) | E18: U.S. EPA/ORD 1993 | F18: Eq. 3-15, p. 3-8
A19: Bird, large | B19: Water consumption, beta parameter for allometric equation | C19: 0.67 | D19: BW(kg), WC(L) | E19: U.S. EPA/ORD 1993 | F19: Eq. 3-15, p. 3-8
A20: Bird, non-Passerine | B20: Food consumption, alpha parameter for allometric equation | C20: 0.301 | D20: BW(g),FC(g) | E20: U.S. EPA/ORD 1993 | F20: Eq. 3-5, p. 3-5, non-passerines
A21: Bird, non-Passerine | B21: Food consumption, beta parameter for allometric equation | C21: 0.751 | D21: BW(g),FC(g) | E21: U.S. EPA/ORD 1993 | F21: Eq. 3-5, p. 3-5, non-passerines
A22: Bird, Passerine | B22: Food consumption, alpha parameter for allometric equation | C22: 0.398 | D22: BW(g),FC(g) | E22: U.S. EPA/ORD 1993 | F22: Eq. 3-4, p. 3-4, passerines
A23: Bird, Passerine | B23: Food consumption, beta parameter for allometric equation | C23: 0.85 | D23: BW(g),FC(g) | E23: U.S. EPA/ORD 1993 | F23: Eq. 3-4, p. 3-4, passerines
A24: Bird, piscivorous | B24: Body weight | C24: 2.4 | D24: kg | E24: Sibley 2000 | F24: p. 60. Great Blue Heron
A25: Bird, piscivorous | B25: Food consumption, alpha parameter for allometric equation | C25: 0.495 | D25: BW(g), FC(g) | E25: U.S. EPA/ORD 1993 | F25: Eq. 3-6, p. 3-5, seabird
A26: Bird, piscivorous | B26: Food consumption, beta parameter for allometric equation | C26: 0.704 | D26: BW(g), FC(g) | E26: U.S. EPA/ORD 1993 | F26: Eq. 3-6, p. 3-5, seabird
A27: Bird, piscivorous | B27: Kilocalories, alpha parameter for allometric equation | C27: 1.916 | D27: BW(g),KCal(kcal/day) | E27: U.S. EPA/ORD 1993 | F27: Eq. 3-38, p. 3-23, seabird
A28: Bird, piscivorous | B28: Kilocalories, beta parameter for allometric equation | C28: 0.704 | D28: BW(g),KCal(kcal/day) | E28: U.S. EPA/ORD 1993 | F28: Eq. 3-38, p. 3-23, seabird
A29: Bird, piscivorous | B29: Water consumption, alpha parameter for allometric equation | C29: 0.059 | D29: BW(kg), WC(L) | E29: U.S. EPA/ORD 1993 | F29: Eq. 3-15, p. 3-8
A30: Bird, piscivorous | B30: Water consumption, beta parameter for allometric equation | C30: 0.67 | D30: BW(kg), WC(L) | E30: U.S. EPA/ORD 1993 | F30: Eq. 3-15, p. 3-8
A31: Bird, small | B31: Body weight | C31: 0.01 | D31: kg | E31: Default | F31: N/A
A32: Bird, small | B32: Kilocalories, alpha parameter for allometric equation | C32: 3.12 | D32: BW(g),KCal(kcal/day) | E32: U.S. EPA/ORD 1993 | F32: Equation 3-36, passerines
A33: Bird, small | B33: Kilocalories, beta parameter for allometric equation | C33: 0.605 | D33: BW(g),KCal(kcal/day) | E33: U.S. EPA/ORD 1993 | F33: Equation 3-36, passerines
A34: Bird, small | B34: Water consumption, alpha parameter for allometric equation | C34: 0.059 | D34: BW(kg), WC(L) | E34: U.S. EPA/ORD 1993 | F34: Eq. 3-15, p. 3-8
A35: Bird, small | B35: Water consumption, beta parameter for allometric equation | C35: 0.67 | D35: BW(kg), WC(L) | E35: U.S. EPA/ORD 1993 | F35: Eq. 3-15, p. 3-8
A36: Honeybee | B36: Body weight | C36: 0.000116 | D36: kg | E36: Winston 1987 | F36: p. 54. Arithmetic average of range: 81 to 151 mg/bee.
A37: Honeybee | B37: Surface Area, Whole body | C37: 1.42 | D37: cm2 | E37: Humphery and Dykes 2008 | F37: Based on a bee with a body length of 1.44 cm.
A38: Mammal, Nos | B38: Food consumption, alpha parameter for allometric equation | C38: 0.235 | D38: BW(g),FC(g) | E38: U.S. EPA/ORD 1993 | F38: Eq. 3-7 ,p. 3-6, all mammals
A39: Mammal, Nos | B39: Food consumption, beta parameter for allometric equation | C39: 0.822 | D39: BW(g),FC(g) | E39: U.S. EPA/ORD 1993 | F39: Eq. 3-7 ,p. 3-6, all mammals
A40: Mammal, 400 g | B40: Body weight | C40: 0.4 | D40: kg | E40: Default | F40: N/A
A41: Mammal, 400 g | B41: Food consumption, alpha parameter for allometric equation | C41: 0.621 | D41: BW(g),FC(g) | E41: U.S. EPA/ORD 1993 | F41: Eq. 3-8, p. 3-6, equation for rodents
A42: Mammal, 400 g | B42: Food consumption, beta parameter for allometric equation | C42: 0.564 | D42: BW(g),FC(g) | E42: U.S. EPA/ORD 1993 | F42: Eq. 3-8, p. 3-6, equation for rodents
A43: Mammal, 400 g | B43: Kilocalories, alpha parameter for allometric equation | C43: 2.514 | D43: BW(g),KCal(kcal/day) | E43: U.S. EPA/ORD 1993 | F43: Equation 3-48, rodent
A44: Mammal, 400 g | B44: Kilocalories, beta parameter for allometric equation | C44: 0.507 | D44: BW(g),KCal(kcal/day) | E44: U.S. EPA/ORD 1993 | F44: Equation 3-48, rodent
A45: Mammal, 400 g | B45: Water consumption, alpha parameter for allometric equation | C45: 0.099 | D45: BW(kg),WC(L) | E45: U.S. EPA/ORD 1993 | F45: Eq. 3-17, p. 3-10, all mammals
A46: Mammal, 400 g | B46: Water consumption, beta parameter for allometric equation | C46: 0.9 | D46: BW(kg),WC(L) | E46: U.S. EPA/ORD 1993 | F46: Eq. 3-17, p. 3-10, all mammals
A47: Mammal, carnivorous | B47: Body weight | C47: 5 | D47: kg | E47: U.S. EPA/ORD 1993 | F47: p. 2-221. Central value for red fox with a range of 3 to 7 kg.
A48: Mammal, carnivorous | B48: Kilocalories, alpha parameter for allometric equation | C48: 0.6167 | D48: BW(g),KCal(kcal/day) | E48: U.S. EPA/ORD 1993 | F48: Equation 3-47, non-herbivore
A49: Mammal, carnivorous | B49: Kilocalories, beta parameter for allometric equation | C49: 0.862 | D49: BW(g),KCal(kcal/day) | E49: U.S. EPA/ORD 1993 | F49: Equation 3-47, non-herbivore
A50: Mammal, carnivorous | B50: Water consumption, alpha parameter for allometric equation | C50: 0.099 | D50: BW(kg),WC(L) | E50: U.S. EPA/ORD 1993 | F50: Eq. 3-17, p. 3-10, all mammals
A51: Mammal, carnivorous | B51: Water consumption, beta parameter for allometric equation | C51: 0.9 | D51: BW(kg), WC(L) | E51: U.S. EPA/ORD 1993 | F51: Eq. 3-17, p. 3-10, all mammals
A52: Mammal, large carnivorous | B52: Body weight | C52: 70 | D52: kg | E52: Reid 2006 | F52: pp. 451-453. Black bear or small grizzly.
A53: Mammal, large carnivorous | B53: Kilocalories, alpha parameter for allometric equation | C53: 0.6167 | D53: BW(g),KCal(kcal/day) | E53: U.S. EPA/ORD 1993 | F53: Equation 3-47, non-herbivore
A54: Mammal, large carnivorous | B54: Kilocalories, beta parameter for allometric equation | C54: 0.862 | D54: BW(g),KCal(kcal/day) | E54: U.S. EPA/ORD 1993 | F54: Equation 3-47, non-herbivore
A55: Mammal, large carnivorous | B55: Water consumption, alpha parameter for allometric equation | C55: 0.099 | D55: BW(kg),WC(L) | E55: U.S. EPA/ORD 1993 | F55: Eq. 3-17, p. 3-10, all mammals
A56: Mammal, large carnivorous | B56: Water consumption, beta parameter for allometric equation | C56: 0.9 | D56: BW(kg), WC(L) | E56: U.S. EPA/ORD 1993 | F56: Eq. 3-17, p. 3-10, all mammals
A57: Mammal, herbivorous | B57: Food consumption, alpha parameter for allometric equation | C57: 0.577 | D57: BW(g),FC(g) | E57: U.S. EPA/ORD 1993 | F57: Eq. 3-9, p. 3-6, equation for herbivores
A58: Mammal, herbivorous | B58: Food consumption, beta parameter for allometric equation | C58: 0.727 | D58: BW(g),FC(g) | E58: U.S. EPA/ORD 1993 | F58: Eq. 3-9, p. 3-6, equation for herbivores
A59: Mammal, herbivorous | B59: Kilocalories, alpha parameter for allometric equation | C59: 1.518 | D59: BW(g),KCal(kcal/day) | E59: U.S. EPA/ORD 1993 | F59: Equation 3-46, herbivores
A60: Mammal, herbivorous | B60: Kilocalories, beta parameter for allometric equation | C60: 0.73 | D60: BW(g),KCal(kcal/day) | E60: U.S. EPA/ORD 1993 | F60: Equation 3-46, herbivores
A61: Mammal, large | B61: Body weight | C61: 70 | D61: kg | E61: Default | F61: N/A
A62: Mammal, large | B62: Kilocalories, alpha parameter for allometric equation | C62: 1.518 | D62: BW(g),KCal(kcal/day) | E62: U.S. EPA/ORD 1993 | F62: p. 3-6, Eq. 3-10, herbivores
A63: Mammal, large | B63: Kilocalories, beta parameter for allometric equation | C63: 0.73 | D63: BW(g),KCal(kcal/day) | E63: U.S. EPA/ORD 1993 | F63: p. 3-6, Eq. 3-10, herbivores
A64: Mammal, large | B64: Water consumption, alpha parameter for allometric equation | C64: 0.099 | D64: BW(kg),WC(L) | E64: U.S. EPA/ORD 1993 | F64: Eq. 3-17, p. 3-10, all mammals
A65: Mammal, large | B65: Water consumption, beta parameter for allometric equation | C65: 0.9 | D65: BW(kg), WC(L) | E65: U.S. EPA/ORD 1993 | F65: Eq. 3-17, p. 3-10, all mammals
A66: Mammal, rabbit | B66: Body weight | C66: 1.3 | D66: kg | E66: Default | F66: N/A
A67: Mammal, rabbit | B67: Surface Area, alpha parameter for allometric equation | C67: 0.11 | D67: BW(kg),SA(m2) | E67: U.S. EPA/ORD 1993 | F67: p. 3-14, Eq. 3-22, for all mammals
A68: Mammal, rabbit | B68: Surface Area, beta parameter for allometric equation | C68: 0.65 | D68: BW(kg),SA(m2) | E68: U.S. EPA/ORD 1993 | F68: p. 3-14, Eq. 3-22, for all mammals
A69: Mammal, rodent | B69: Food consumption, alpha parameter for allometric equation | C69: 0.621 | D69: BW(g),FC(g) | E69: U.S. EPA/ORD 1993 | F69: Eq. 3-8, p. 3-6, equation for rodents
A70: Mammal, rodent | B70: Food consumption, beta parameter for allometric equation | C70: 0.584 | D70: BW(g),FC(g) | E70: U.S. EPA/ORD 1993 | F70: Eq. 3-8,p. 3-6, equation for rodents
A71: Mammal, small | B71: Body weight | C71: 0.02 | D71: kg | E71: Default | F71: N/A
A72: Mammal, small | B72: Caloric content (wet weight) | C72: 1.7 | D72: kcal/g (wet weight) | E72: U.S. EPA/ORD 1993 | F72: Table 4-1, p. 4-13. Value for small mammals. Wet weight.
A73: Mammal, small | B73: Food consumption, alpha parameter for allometric equation | C73: 0.621 | D73: BW(g),FC(g) | E73: U.S. EPA/ORD 1993 | F73: Eq. 3-8, p. 3-6, equation for rodents
A74: Mammal, small | B74: Food consumption, beta parameter for allometric equation | C74: 0.564 | D74: BW(g),FC(g) | E74: U.S. EPA/ORD 1993 | F74: Eq. 3-8, p. 3-6, equation for rodents
A75: Mammal, small | B75: Kilocalories, alpha parameter for allometric equation | C75: 2.514 | D75: BW(g),KCal(kcal/day) | E75: U.S. EPA/ORD 1993 | F75: Equation 3-48, rodent
A76: Mammal, small | B76: Kilocalories, beta parameter for allometric equation | C76: 0.507 | D76: BW(g),KCal(kcal/day) | E76: U.S. EPA/ORD 1993 | F76: Equation 3-48, rodent
A77: Mammal, small | B77: Surface Area, alpha parameter for allometric equation | C77: 0.11 | D77: BW(kg),SA(m2) | E77: U.S. EPA/ORD 1993 | F77: p. 3-14, Eq. 3-22, for all mammals
A78: Mammal, small | B78: Surface Area, beta parameter for allometric equation | C78: 0.65 | D78: BW(kg),SA(m2) | E78: U.S. EPA/ORD 1993 | F78: p. 3-14, Eq. 3-22, for all mammals
A79: Mammal, small | B79: Water consumption, alpha parameter for allometric equation | C79: 0.099 | D79: BW(kg),WC(L) | E79: U.S. EPA/ORD 1993 | F79: Eq. 3-17, p. 3-10, all mammals
A80: Mammal, small | B80: Water consumption, beta parameter for allometric equation | C80: 0.9 | D80: BW(kg),WC(L) | E80: U.S. EPA/ORD 1993 | F80: Eq. 3-17, p. 3-10, all mammals

Sheet A02c
A1: General reference values and exposure factors used in worksheets.
A3: Receptor | B3: Factor | C3: Value | D3: Units | E3: Reference | F3: Reference Note
A4: Small Insects | B4: Caloric content (wet weight) | C4: 1.5 | D4: kcal/g (wet weight) | E4: U.S. EPA/ORD 1993 | F4: Table 4-1, p. 4-13. Value for beetles. Wet weight
A5: Fish | B5: Caloric content (wet weight) | C5: 1.2 | D5: kcal/g (wet weight) | E5: U.S. EPA/ORD 1993 | F5: Table 4-1, p. 4-13. Value for bony fish. Wet weight
A6: Vegetation | B6: Caloric content (dry weight) | C6: 2.26 | D6: kcal/g | E6: U.S. EPA/ORD 1993 | F6: p. 3-5, Table 3-1
A7: Vegetation | B7: Water content (proportion) | C7: 0.85 | D7: unitless | E7: U.S. EPA/ORD 1993 | F7: p. 4-14
A8: VegRR | B8: Broadleaf/forage plants and small insects, central estimate | C8: 45 | D8: mg chem/kg veg | E8: Fletcher et al. 1994 | F8: Broadleaf/forage plants and small insects
A9: VegRR | B9: Broadleaf/forage plants and small insects, upper range | C9: 135 | D9: mg chem/kg veg | E9: Fletcher et al. 1994 | F9: Broadleaf/forage plants and small insects
A10: VegRR | B10: Fruits, pods, seeds, and large insects, central estimate | C10: 7 | D10: mg chem/kg veg | E10: Fletcher et al. 1994 | F10: Fruits, pods, seeds, and large insects
A11: VegRR | B11: Fruits, pods, seeds, and large insects, upper range | C11: 15 | D11: mg chem/kg veg | E11: Fletcher et al. 1994 | F11: Fruits, pods, seeds, and large insects
A12: VegRR | B12: Broadleaf plants and small insects, granular applications, central estimate | C12: 1.8 | D12: mg chem/kg veg | E12: SERA 2005 | F12: Broadleaf forage plants and contaminated insects after granular application
A13: VegRR | B13: Broadleaf plants and small insects, granular applications, upper range | C13: 5.4 | D13: mg chem/kg veg | E13: SERA 2005 | F13: Broadleaf forage plants and contaminated insects after granular application
A14: VegRR | B14: Fruits, granular applications, central estimate | C14: 0.28 | D14: mg chem/kg veg | E14: SERA 2005 | F14: Fruit after granular application
A15: VegRR | B15: Fruits, granular applications, upper range | C15: 0.6 | D15: mg chem/kg veg | E15: SERA 2005 | F15: Fruit after granular application
A16: VegRR | B16: Short grass, granular applications, lower range | C16: 1.2 | D16: mg chem/kg veg | E16: SERA 2005 | F16: Short grass after granular application
A17: VegRR | B17: Short grass, granular applications, upper range | C17: 9.6 | D17: mg chem/kg veg | E17: SERA 2005 | F17: Short grass after granular application
A18: VegRR | B18: Tall grass, granular applications, central estimate | C18: 1.44 | D18: mg chem/kg veg | E18: SERA 2005 | F18: Tall grass after granular application
A19: VegRR | B19: Tall grass, granular applications, upper range | C19: 4.4 | D19: mg chem/kg veg | E19: SERA 2005 | F19: Tall grass after granular application
A20: VegRR | B20: Short grass, central estimate | C20: 85 | D20: mg chem/kg veg | E20: Fletcher et al. 1994 | F20: Short grass
A21: VegRR | B21: Short grass, lower range | C21: 30 | D21: mg chem/kg veg | E21: SERA 2007 | F21: Short grass
A22: VegRR | B22: Short grass, upper range | C22: 240 | D22: mg chem/kg veg | E22: Fletcher et al. 1994 | F22: Short grass
A23: VegRR | B23: Tall grass, central estimate | C23: 36 | D23: mg chem/kg veg | E23: Fletcher et al. 1994 | F23: Tall grass
A24: VegRR | B24: Tall grass, upper range | C24: 110 | D24: mg chem/kg veg | E24: Fletcher et al. 1994 | F24: Tall grass

Sheet A02d
A1: General reference values and exposure factors used in worksheets.
A3: Receptor | B3: Factor | C3: Value | D3: Units | E3: Reference | F3: Reference Note
A4: Conversion Factors | B4: acrefoot2gal | C4: 325900 | D4: gal/acre-foot | E4: Budavari 1989 | F4: N/A
A5: Conversion Factors | B5: liters per gal | C5: 3.785 | D5: L/gal | E5: Budavari 1989 | F5: N/A
A6: Conversion Factors | B6: pound per milligram | C6: 453600 | D6: mg/lb | E6: Budavari 1989 | F6: N/A
A7: Conversion Factors | B7: lbac2mgcm2 | C7: 0.01121 | D7: mg/cm2 per lb/acre | E7: Budavari 1989 | F7: N/A
A8: Conversion Factors | B8: lbac2ugcm2 | C8: 11.21 | D8: ug/cm2 per lb/acre | E8: Budavari 1989 | F8: N/A
A9: Conversion Factors | B9: conversion for milligrams to pounds | C9: 2.204e-06 | D9: lb/mg | E9: Budavari 1989 | F9: N/A
A10: Conversion Factors | B10: conversion for milliliters to gallons | C10: 3785 | D10: ml/gal | E10: Budavari 1989 | F10: N/A
A11: Misc | B11: Liquid adhering to skin | C11: 0.008 | D11: mL/cm2 | E11: Mason and Johnson 1987 | F11: Weight of liquid adhering to surface of skin after a spill
A12: Misc | B12: Dislodgeable residue as proportion | C12: 0.1 | D12: none | E12: Harris and Solomon 1992 | F12: Estimate of dislodgeable residue as a proportion of application rate shortly after application based on 2,4-D.
A13: Standard Pond | B13: Depth | C13: 1 | D13: m | E13: Default | F13: Depth of pond
A14: Standard Pond | B14: Surface Area | C14: 1000 | D14: m^2 | E14: Default | F14: Surface Area
A15: Standard Pond | B15: Volume of Spill | C15: 200 | D15: gallons | E15: Default | F15: Volume of spill
A16: VegRR | B16: Broadleaf/forage plants and small insects, lower range | C16: 15 | D16: mg chem/kg veg | E16: SERA 2007 | F16: Broadleaf/forage plants and small insects
A17: VegRR | B17: Fruits, pods, seeds, and large insects, lower range | C17: 3.2 | D17: mg chem/kg veg | E17: SERA 2007 | F17: Fruits, pods, seeds, and large insects
A18: VegRR | B18: Broadleaf plants and small insects, granular applications, lower range | C18: 0.6 | D18: mg chem/kg veg | E18: SERA 2007 | F18: Broadleaf/forage plants after granular application
A19: VegRR | B19: Fruits, granular applications, lower range | C19: 0.13 | D19: mg chem/kg veg | E19: SERA 2007 | F19: Fruit after granular application
A20: VegRR | B20: Short grass, granular applications, central estimate | C20: 3.4 | D20: mg chem/kg veg | E20: SERA 2005 | F20: Short grass after granular application
A21: VegRR | B21: Short grass, granular applications, lower range | C21: 1.2 | D21: mg chem/kg veg | E21: SERA 2007 | F21: Short grass after granular application
A22: VegRR | B22: Tall grass, granular applications, lower range | C22: 0.48 | D22: mg chem/kg veg | E22: SERA 2007 | F22: Tall grass after granular application
A23: VegRR | B23: Short grass, lower range | C23: 30 | D23: mg chem/kg veg | E23: Fletcher et al. 1994 | F23: Short grass
A24: VegRR | B24: Tall grass, lower range | C24: 12 | D24: mg chem/kg veg | E24: SERA 2007 | F24: Tall grass

Sheet A03
A1: Consumption values used in worksheets
A3: Receptor | B3: Item | C3: Qualifier | D3: Modifier | E3: Value | F3: Units | G3: Reference | H3: Reference Note
A4: Adult Female | B4: Fish | C4: Amount | D4: central estimate | E4: 0.01 | F4: kg/day | G4: U.S. EPA/ORD 1996 | H4: p. 10-51, average of means from four studies rounded to one significant place.
A5: Adult Female | B5: Fish | C5: Amount | D5: upper range | E5: 0.158 | F5: kg/day | G5: Ruffle et al. 1994 | H5: N/A
A6: Adult Female | B6: Fruit | C6: Proportion of body weight | D6: central estimate | E6: 0.00168 | F6: kg fruit/kg bw/day | G6: U.S. EPA/ORD 1996 | H6: Table 9-3, p. 9-11, mean value.
A7: Adult Female | B7: Fruit | C7: Proportion of body weight | D7: lower range | E7: 0.00168 | F7: kg fruit/kg bw/day | G7: U.S. EPA/ORD 1996 | H7: Table 9-3, p. 9-11. The 5th percentile is given as zero. For these worksheets, the central estimate is used for the lower bound.
A8: Adult Female | B8: Fruit | C8: Proportion of body weight | D8: upper range | E8: 0.01244 | F8: kg fruit/kg bw/day | G8: U.S. EPA/ORD 1996 | H8: Table 9-3, p. 9-11, 95th percentile value.
A9: Adult Female | B9: Vegetation, home grown | C9: Proportion of body weight | D9: central estimate | E9: 0.00076 | F9: kg veg/kg bw/day | G9: U.S. EPA/ORD 1996 | H9: Table 12-15, p. 9-14, mean for individuals between 20 and 39 years old.
A10: Adult Female | B10: Vegetation, home grown | C10: Proportion of body weight | D10: lower range | E10: 8e-05 | F10: kg veg/kg bw/day | G10: U.S. EPA/ORD 1996 | H10: Table 12-15, p. 9-14, 5th percentile for individuals between 20 and 39 years old.
A11: Adult Female | B11: Vegetation, home grown | C11: Proportion of body weight | D11: upper range | E11: 0.00492 | F11: kg veg/kg bw/day | G11: U.S. EPA/ORD 1996 | H11: Table 12-15, p. 9-14, 95th percentile for individuals between 20 and 39 years old.
A12: Adult Female | B12: Vegetation | C12: Amount | D12: Extreme | E12: 0.454 | F12: kg food | G12: U.S. EPA/ORD 1996 | H12: 1 lb. The approximate mid range of the above typical and upper limits based on the 64 kg body weight.
A13: Adult Female | B13: Vegetation | C13: Proportion of body weight | D13: central estimate | E13: 0.0036 | F13: kg veg/kg bw/day | G13: U.S. EPA/ORD 1996 | H13: Table 9-12, p. 9-12, mean.
A14: Adult Female | B14: Vegetation | C14: Proportion of body weight | D14: lower range | E14: 0.00075 | F14: kg veg/kg bw/day | G14: U.S. EPA/ORD 1996 | H14: Table 9-12, p. 9-12, 5th percentile.
A15: Adult Female | B15: Vegetation | C15: Proportion of body weight | D15: upper range | E15: 0.01 | F15: kg veg/kg bw/day | G15: U.S. EPA/ORD 1996 | H15: Table 9-12, p. 9-12, 95th percentile.
A16: Adult Female | B16: Water | C16: Amount | D16: central estimate | E16: 2 | F16: L/day | G16: U.S. EPA/ORD 1996 | H16: p. 3-28, Table 3-30, midpoint of mean (1.4 L/day) and 90th percentile (2.4 L/day) rounded to one significant place.
A17: Adult Female | B17: Water | C17: Amount | D17: lower range | E17: 1.4 | F17: L/day | G17: U.S. EPA/ORD 1996 | H17: p. 3-28, Table 3-30, mean
A18: Adult Female | B18: Water | C18: Amount | D18: upper range | E18: 2.4 | F18: L/day | G18: U.S. EPA/ORD 1996 | H18: p. 3-28, Table 3-30, 90th percentile
A19: Adult Male | B19: Fish | C19: Amount | D19: central estimate | E19: 0.01 | F19: kg/day | G19: U.S. EPA/ORD 1996 | H19: p. 10-51, average of means from four studies rounded to one significant place.
A20: Adult Male | B20: Fish | C20: Amount | D20: upper range | E20: 0.158 | F20: kg/day | G20: Ruffle et al. 1994 | H20: N/A
A21: Adult Male | B21: Fruit | C21: Proportion of body weight | D21: central estimate | E21: 0.00168 | F21: unitless | G21: U.S. EPA/ORD 1996 | H21: Table 9-3, p. 9-11, mean value.
A22: Adult Male | B22: Fruit | C22: Proportion of body weight | D22: lower range | E22: 0.00168 | F22: unitless | G22: U.S. EPA/ORD 1996 | H22: Table 9-3, p. 9-11. The 5th percentile is given as zero. For these worksheets, the central estimate is used for the lower bound.
A23: Adult Male | B23: Fruit | C23: Proportion of body weight | D23: upper range | E23: 0.01244 | F23: unitless | G23: U.S. EPA/ORD 1996 | H23: Table 9-3, p. 9-11, 95th percentile value.
A24: Adult Male | B24: Vegetation, home grown | C24: Proportion of body weight | D24: central estimate | E24: 0.00076 | F24: unitless | G24: U.S. EPA/ORD 1996 | H24: Table 12-15, p. 9-14, mean for individuals between 20 and 39 years old.
A25: Adult Male | B25: Vegetation, home grown | C25: Proportion of body weight | D25: lower range | E25: 8e-05 | F25: unitless | G25: U.S. EPA/ORD 1996 | H25: Table 12-15, p. 9-14, 5th percentile for individuals between 20 and 39 years old.
A26: Adult Male | B26: Vegetation, home grown | C26: Proportion of body weight | D26: upper range | E26: 0.00492 | F26: unitless | G26: U.S. EPA/ORD 1996 | H26: Table 12-15, p. 9-14, 95th percentile for individuals between 20 and 39 years old.
A27: Adult Male | B27: Vegetation | C27: Amount | D27: Extreme | E27: 0.454 | F27: kg/day | G27: U.S. EPA/ORD 1996 | H27: 1 lb. The approximate mid range of the above typical and upper limits based on the 64 kg body weight.
A28: Adult Male | B28: Vegetation | C28: Proportion of body weight | D28: central estimate | E28: 0.0036 | F28: unitless | G28: U.S. EPA/ORD 1996 | H28: Table 9-12, p. 9-12, mean.
A29: Adult Male | B29: Vegetation | C29: Proportion of body weight | D29: lower range | E29: 0.00075 | F29: unitless | G29: U.S. EPA/ORD 1996 | H29: Table 9-12, p. 9-12, 5th percentile.
A30: Adult Male | B30: Vegetation | C30: Proportion of body weight | D30: upper range | E30: 0.01 | F30: unitless | G30: U.S. EPA/ORD 1996 | H30: Table 9-12, p. 9-12, 95th percentile.
A31: Adult Male | B31: Water | C31: Amount | D31: central estimate | E31: 2 | F31: L/day | G31: U.S. EPA/ORD 1996 | H31: p. 3-28, Table 3-30, midpoint of mean (1.4 L/day) and 90th percentile (2.4 L/day) rounded to one significant place.
A32: Adult Male | B32: Water | C32: Amount | D32: lower range | E32: 1.4 | F32: L/day | G32: U.S. EPA/ORD 1996 | H32: p. 3-28, Table 3-30, mean
A33: Adult Male | B33: Water | C33: Amount | D33: upper range | E33: 2.4 | F33: L/day | G33: U.S. EPA/ORD 1996 | H33: p. 3-28, Table 3-30, 90th percentile
A34: Subsistence Populations | B34: Fish | C34: Amount | D34: central estimate | E34: 0.081 | F34: kg/day | G34: U.S. EPA/ORD 1996 | H34: p. 10-51, median value of 94 individuals
A35: Subsistence Populations | B35: Fish | C35: Amount | D35: upper range | E35: 0.77 | F35: kg/day | G35: U.S. EPA/ORD 1996 | H35: p. 10-51, highest value of 94 individuals
A36: Child | B36: Water | C36: Amount | D36: central estimate | E36: 1 | F36: L/day | G36: U.S. EPA/ORD 1996 | H36: p. 3-28, Table 3-30, midpoint of mean (0.61L/day) and 90th percentile (1.5 L/day) rounded to one significant place.
A37: Child | B37: Water | C37: Amount | D37: lower range | E37: 0.61 | F37: L/day | G37: U.S. EPA/ORD 1996 | H37: p. 3-28, Table 3-30, mean
A38: Child | B38: Water | C38: Amount | D38: upper range | E38: 1.5 | F38: L/day | G38: U.S. EPA/ORD 1996 | H38: p. 3-28, Table 3-30, 90th percentile
A39: Herbivorous Insect | B39: Broadleaf/Small Insects | C39: Proportion of body weight | D39: central estimate | E39: 1.3 | F39: kg food/kg bw/day | G39: Waldbauer 1968 | H39: N/A
A40: Herbivorous Insect | B40: Broadleaf/Small Insects | C40: Proportion of body weight | D40: lower range | E40: 0.6 | F40: kg food/kg bw/day | G40: Reichle et al. 1973 | H40: N/A
A41: Herbivorous Insect | B41: Broadleaf/Small Insects | C41: Proportion of body weight | D41: upper range | E41: 2.2 | F41: kg food/kg bw/day | G41: Waldbauer 1968 | H41: N/A
A42: Herbivorous Insect | B42: Fruit | C42: Proportion of body weight | D42: central estimate | E42: 1.3 | F42: kg food/kg bw/day | G42: Waldbauer 1968 | H42: N/A
A43: Herbivorous Insect | B43: Fruit | C43: Proportion of body weight | D43: lower range | E43: 0.6 | F43: kg food/kg bw/day | G43: Reichle et al. 1973 | H43: N/A
A44: Herbivorous Insect | B44: Fruit | C44: Proportion of body weight | D44: upper range | E44: 2.2 | F44: kg food/kg bw/day | G44: Waldbauer 1968 | H44: N/A
A45: Herbivorous Insect | B45: Short grass | C45: Proportion of body weight | D45: central estimate | E45: 1.3 | F45: kg food/kg bw/day | G45: Waldbauer 1968 | H45: N/A
A46: Herbivorous Insect | B46: Short grass | C46: Proportion of body weight | D46: lower range | E46: 0.6 | F46: kg food/kg bw/day | G46: Reichle et al. 1973 | H46: N/A
A47: Herbivorous Insect | B47: Short grass | C47: Proportion of body weight | D47: upper range | E47: 2.2 | F47: kg food/kg bw/day | G47: Waldbauer 1968 | H47: N/A
A48: Herbivorous Insect | B48: Tall Grass | C48: Proportion of body weight | D48: central estimate | E48: 1.3 | F48: kg food/kg bw/day | G48: Waldbauer 1968 | H48: N/A
A49: Herbivorous Insect | B49: Tall Grass | C49: Proportion of body weight | D49: lower range | E49: 0.6 | F49: kg food/kg bw/day | G49: Reichle et al. 1973 | H49: N/A
A50: Herbivorous Insect | B50: Tall Grass | C50: Proportion of body weight | D50: upper range | E50: 2.2 | F50: kg food/kg bw/day | G50: Waldbauer 1968 | H50: N/A

Sheet B01
A1: Chemical and Physical Properties for Picloram
A3: Property | B3: Receptor | C3: Value | D3: Units | E3: Document Reference
A4: Bioconcentration Factor (BCF), edible, acute | B4: N/A | C4: 2000 | D4: L/kg fish | E4: Section 3.2.3.5.
A5: Bioconcentration Factor (BCF), edible, chronic | B5: N/A | C5: 20000 | D5: L/kg fish | E5: Section 3.2.3.5.
A6: Bioconcentration Factor (BCF), whole fish, acute | B6: N/A | C6: 2000 | D6: L/kg fish | E6: Section 3.2.3.5.
A7: Bioconcentration Factor (BCF), whole fish, chronic | B7: N/A | C7: 20000 | D7: L/kg fish | E7: Section 3.2.3.5.
A8: Kow (Octanol-water partition coefficient) | B8: N/A | C8: 537000 | D8: unitless | E8: Table 2-1
A9: Molecular weight | B9: N/A | C9: 241.48 | D9: grams/mole | E9: Table 2-1
A10: Water Solubility | B10: N/A | C10: 0.0051 | D10: mg/L | E10: Table 2-1
A11: First order dermal absorption rate (ka), central estimate | B11: N/A | C11: 0.00014 | D11: per hour | E11: Section 3.2.2.2
A12: First order dermal absorption rate (ka), lower range | B12: N/A | C12: 3e-05 | D12: per hour | E12: Section 3.2.2.2
A13: First order dermal absorption rate (ka), upper range | B13: N/A | C13: 0.0004 | D13: per hour | E13: Section 3.2.2.2
A14: Dermal permeability (Kp), central estimate | B14: N/A | C14: 5.7e-05 | D14: cm/hour | E14: Section 3.2.2.2
A15: Dermal permeability (Kp), lower range | B15: N/A | C15: 2.8e-05 | D15: cm/hour | E15: Section 3.2.2.2
A16: Dermal permeability (Kp), upper range | B16: N/A | C16: 0.000115 | D16: cm/hour | E16: Section 3.2.2.2
A17: Halftime, central estimate | B17: Fruit | C17: 3 | D17: days | E17: Section 3.2.3.6
A18: Halftime, lower range | B18: Fruit | C18: 3 | D18: days | E18: Section 3.2.3.6
A19: Halftime, upper range | B19: Fruit | C19: 3 | D19: days | E19: Section 3.2.3.6
A20: Halftime, central estimate | B20: Vegetation | C20: 3 | D20: days | E20: Section 3.2.3.6
A21: Halftime, lower range | B21: Vegetation | C21: 3 | D21: days | E21: Section 3.2.3.6
A22: Halftime, upper range | B22: Vegetation | C22: 3 | D22: days | E22: Section 3.2.3.6

Sheet B02
A1: Toxicity values for Picloram
A3: Receptor | B3: Receptor | C3: Qualifier | D3: Endpoint | E3: Value | F3: Units | G3: Document Reference
A4: Human | B4: acute | C4: N/A | D4: Reference Dose (RfD) | E4: 0.2 | F4: mg/kg bw | G4: Section 3.3.2.
A5: Human | B5: chronic | C5: N/A | D5: Reference Dose (RfD) | E5: 9.8e-07 | F5: mg/kg bw/day | G5: Section 3.3.3.
A6: Fish | B6: acute | C6: sensitive species | D6: LC50 | E6: 0.8 | F6: mg/L | G6: Section 4.3.3.1.
A7: Fish | B7: acute | C7: tolerant species | D7: LC50 | E7: 55.3 | F7: mg/L | G7: Section 4.3.3.1.
A8: Fish | B8: chronic | C8: sensitive species | D8: NOEC | E8: 0.71 | F8: mg/L | G8: Section 4.3.3.1.
A9: Fish | B9: chronic | C9: tolerant species | D9: LOEC | E9: 0.035 | F9: mg/L | G9: Section 4.3.3.1.
A10: Aquatic invertebrate | B10: acute | C10: sensitive species | D10: LC50 | E10: 26.8 | F10: mg/L | G10: Section 4.3.3.3.
A11: Aquatic invertebrate | B11: acute | C11: tolerant species | D11: LC50 | E11: 214 | F11: mg/L | G11: Section 4.3.3.3.
A12: Aquatic invertebrate | B12: chronic | C12: sensitive species | D12: LC50 | E12: 3.8 | F12: mg/L | G12: Section 4.3.3.3.
A13: Aquatic invertebrate | B13: chronic | C13: tolerant species | D13: NOEC | E13: 11.8 | F13: mg/L | G13: Section 4.3.3.3.
A14: Algae | B14: N/A | C14: sensitive species | D14: NOEC | E14: 0.23 | F14: mg/L | G14: Section 4.3.3.4.
A15: Algae | B15: N/A | C15: tolerant species | D15: NOEC | E15: 94 | F15: mg/L | G15: Section 4.3.3.4.
A16: Macrophyte, aquatic | B16: acute | C16: N/A | D16: NOEC | E16: 43.5 | F16: mg/L | G16: Section 4.3.3.4.
A17: Macrophyte, aquatic | B17: chronic | C17: N/A | D17: LOEC | E17: 0.1 | F17: mg/L | G17: Section 4.3.3.4.
A18: Terrestrial plant | B18: Seedling Emergence | C18: sensitive species | D18: NOEC | E18: 0.00019 | F18: lb/acre | G18: Section 4.3.2.4.
A19: Terrestrial plant | B19: Seedling Emergence | C19: tolerant species | D19: NOEC | E19: 0.4 | F19: lb/acre | G19: Section 4.3.2.4.
A20: Terrestrial plant | B20: Vegetative vigor | C20: sensitive species | D20: NOEC | E20: 0.00021 | F20: lb/acre | G20: Section 4.3.2.4.
A21: Terrestrial plant | B21: Vegetative vigor | C21: tolerant species | D21: NOEC | E21: 0.062 | F21: lb/acre | G21: Section 4.3.2.4.
A22: Mammal, Nos | B22: acute | C22: N/A | D22: NOAEL | E22: 34 | F22: mg/kg bw | G22: Section 4.3.2.1.
A23: Mammal, Nos | B23: chronic | C23: N/A | D23: NOAEL | E23: 7 | F23: mg/kg bw/day | G23: Section 4.3.2.1.
A24: Bird, NOS | B24: acute | C24: N/A | D24: NOAEL | E24: 1500 | F24: mg/kg bw | G24: Section 4.3.2.2.
A25: Bird, NOS | B25: chronic | C25: N/A | D25: NOAEL | E25: 7 | F25: mg/kg bw/day | G25: Section 4.3.2.2.
A26: Honeybee | B26: acute | C26: N/A | D26: >LD50 | E26: 1000 | F26: mg/kg bw | G26: Section 4.3.2.3.

Sheet B03a
A1: Calculation of Zero-Order Dermal Permeability Rate (Kp) in cm/hour
A2: Short Title | B2: Calculation of Kp | E2: ChemDrmKp
A3: Parameter/Assumption | B3: Code / Range | C3: Equation/ Value | D3: Units | E3: Reference/Designation
A4: Molecular weight | B4: MW | C4: ='B01'!$C$9 -> 241.48 | D4: g/mole | E4: Table 2-1
A5: Ko/w | B5: Kow | C5: ='B01'!$C$8 -> 537000 | D5: unitless | E5: Table 2-1
A6: Vector a[] | B6: a[1] | C6: 1
B7: a[2] | C7: =C4 -> 241.48
B8: a[3] | C8: =LOG10(C5) -> 5.729974286
A9: Transpose of a[] (a') | B9: =$C$6 -> 1 | C9: =$C$7 -> 241.48 | D9: =$C$8 -> 5.729974286
A10: X'X Cross Product Matrix | B10: X'X
B11: 0.055931 | C11: -9.41546e-05 | D11: -0.0103443
B12: -9.41546e-05 | C12: 5.978e-07 | D12: -2.22508e-05
B13: -0.0103443 | C13: -2.22508e-05 | D13: 0.00740677
A14: a'X'X a | B14: a'X'X a | C14: =MMULT(B9:D9,MMULT(B11:D13, C6:C8)) -> 0.1083800556
A15: Coefficients for model
A16: Intercept | B16: K0 | C16: -2.72576
A17: Coeff for MW | B17: K1 | C17: -0.006151
A18: Coeff for Log10(Kow) | B18: K2 | C18: 0.706648
A19: Standard deviation of model | B19: s | C19: 0.727129
A20: Critical value at 0.025 with 87 d.f. | B20: t0.025 | C20: 1.96
A21: Log10 of Estimated dermal permeability rate (Kp) | B21: Log(Kp) = | C21: K0 + K1 MW + K2 Log10(Kow)
B22: Central | C22: =$C$16 + ($C$17*$C$4) + ($C$18*LOG10($C$5)) -> -0.162028611 | E22: Eq
B23: Lower 95% CI | C23: =$C$22 - ($C$20 * $C$19 * ($C$14^0.5)) -> -0.6312115615 | E23: Eq
B24: Upper 95% CI | C24: =$C$22 + ($C$20 * $C$19 * ($C$14^0.5)) -> 0.3071543396 | E24: Eq
A25: Estimated dermal permeability rate (Kp) | B25: Kp = | C25: 10Log(Kp)
B26: Central | C26: =10^C22 -> 0.68860693 | D26: cm/hour | E26: Eq
B27: Lower 95% CI | C27: =10^C23 -> 0.2337698179 | E27: Eq
B28: Upper 95% CI | C28: =10^C24 -> 2.028403445 | E28: Eq

Sheet B03b
A1: Calculation of First-Order Dermal Absorption Rate
A2: Short Title | B2: Calculation of ka | E2: ChemDrmKa
A3: Parameter/Assumption | B3: Code / Range | C3: Equation/ Value | D3: Units | E3: Reference/Designation
A4: Molecular weight | B4: MW | C4: ='B01'!$C$9 -> 241.48 | D4: g/mole | E4: Table 2-1
A5: Ko/w | B5: Kow | C5: ='B01'!$C$8 -> 537000 | D5: unitless | E5: Table 2-1
A6: Vector a[] | B6: a[1] | C6: 1
B7: a[2] | C7: =C4 -> 241.48
B8: a[3] | C8: =LOG10(C5) -> 5.729974286
A9: Transpose of a[] (a') | B9: =$C$6 -> 1 | C9: =$C$7 -> 241.48 | D9: =$C$8 -> 5.729974286
A10: X'X Cross Product Matrix | B10: X'X
B11: 0.307537 | C11: -0.00103089 | D11: 0.00822769
B12: -0.00103089 | C12: 4.377e-06 | D12: -9.44359e-05
B13: 0.00822769 | C13: -9.44359e-05 | D13: 0.0085286
A14: a'X'X a | B14: a'X'X a | C14: =MMULT(B9:D9,MMULT(B11:D13, C6:C8)) -> 0.1778606008
A15: Coefficients for model
A16: Intercept | B16: K0 | C16: -1.49615
A17: Coeff for MW | B17: K1 | C17: -0.005657
A18: Coeff for Log10(Kow) | B18: K2 | C18: 0.233255
A19: Standard deviation of model | B19: s | C19: 0.787218
A20: Critical value at 0.025 with 26 d.f. | B20: t0.025 | C20: 2.056
A21: Log10 of Estimated first-order absorption rate | B21: Log(ka) = | C21: K0 + K1 MW + K2 Log10(Kow)
B22: Central | C22: =$C$16 + ($C$17*$C$4) + ($C$18*LOG10($C$5)) -> -1.525657208 | E22: Eq
B23: Lower 95% CI | C23: =$C$22 - ($C$20 * $C$19 * ($C$14^0.5)) -> -2.208244194 | E23: Eq
B24: Upper 95% CI | C24: =$C$22 + ($C$20 * $C$19 * ($C$14^0.5)) -> -0.8430702225 | E24: Eq
A25: Estimated first-order absorption rate | B25: ka = | C25: 10Log(ka)
B26: Central | C26: =10^C22 -> 0.02980868324 | D26: hour-1 | E26: Eq
B27: Lower 95% CI | C27: =10^C23 -> 0.006190928759 | E27: Eq
B28: Upper 95% CI | C28: =10^C24 -> 0.1435257343 | E28: Eq

Sheet B04Rt
A1: Estimates of Water Contamination Rates -- i.e., the concentration in ambient water per pound applied per acre
A2: Parameter/Assumption | B2: Code / Range | C2: Equation/ Value | D2: Units | E2: WCRV6
A3: Short-term peak concentrations | B3: Peak | E3: WCRV6
B4: Central | C4: N/A | D4: mg/L | E4: Section 3.2.3.4.1
B5: Lower | C5: N/A | E5: Section 3.2.3.4.1
B6: Upper | C6: N/A | E6: Section 3.2.3.4.1
A7: Longer-term average concentrations | B7: Average
B8: Central | C8: 0.00039 | D8: mg/L | E8: Section 3.2.3.4.2
B9: Lower | C9: 4e-05 | E9: Section 3.2.3.4.2
B10: Upper | C10: 0.005 | E10: Section 3.2.3.4.2
A11: User Specified Gleams-Driver File: | B11: None

Sheet B04a
A1: Expected Concentrations in Surface Water | E1: EECRtV6
A2: Parameter/Assumption | B2: Code / Range | C2: Equation/ Value | D2: Units | E2: EECRtV6
A3: Application Rate | B3: ApRt | C3: ='A01'!ApRt_C -> 3e-06 | D3: lb/acre | E3: Worksheet A01
A4: Water Contamination Rates
A5: Short-term peak water contamination rates (WCR) | B5: Peak
B6: Central | C6: =B04Rt!$C$4 -> N/A | D6: mg/L | E6: Section 3.2.3.4.1
B7: Lower | C7: =B04Rt!$C$5 -> N/A | E7: Section 3.2.3.4.1
B8: Upper | C8: =B04Rt!$C$6 -> N/A | E8: Section 3.2.3.4.1
A9: Longer-term average water contamination rates (WCR) | B9: Average
B10: Central | C10: =B04Rt!$C$8 -> 0.00039 | D10: mg/L | E10: Section 3.2.3.4.2
B11: Lower | C11: =B04Rt!$C$9 -> 4e-05 | E11: Section 3.2.3.4.2
B12: Upper | C12: =B04Rt!$C$10 -> 0.005 | E12: Section 3.2.3.4.2
A13: EECs in Surface Water
A14: Short-term peak concentrations | B14: Peak
B15: Central | C15: =B04Rt!$C$4 -> N/A | D15: mg/L | E15: Eq
B16: Lower | C16: =B04Rt!$C$5 -> N/A | E16: Eq
B17: Upper | C17: =B04Rt!$C$6 -> N/A | E17: Eq
A18: Longer-term average concentrations | B18: Average
B19: Central | C19: =$C$3*C10 -> 1.17e-09 | D19: mg/L | E19: Eq
B20: Lower | C20: =$C$3*C11 -> 1.2e-10 | E20: Eq
B21: Upper | C21: 1.5e-08 | E21: Eq

Sheet B04b
A1: Pond: Concentration of pesticide (liquid formulation) in pond water after an accidental spill
A2: Short Title | B2: Pond Spill | E2: PondSpillLiqV6
A3: Receptor | B3: Pond
A4: Duration | B4: Acute
A5: Parameter/Assumption | B5: Code / Range | C5: Equation/ Value | D5: Units | E5: Reference/Designation
A6: Surface Area of Pond | B6: SA | C6: ='A01'!C$25 -> 1000 | D6: m2 | E6: Worksheet A01
A7: Depth of Pond | B7: Depth | C7: ='A01'!C$26 -> 1 | D7: meter | E7: Worksheet A01
A8: Volume of Pond | B8: VPM | C8: =C6*C7 -> 1000 | D8: m3 | E8: Eq
B9: VPL | C9: =1000*C8 -> 1000000 | D9: liters | E9: Eq
A10: Concentration in solution | B10: Conc
B11: Central | C11: ='A01'!FldConc_C -> 1.2e-05 | D11: mg/mL | E11: Worksheet A01
B12: Lower | C12: ='A01'!FldConc_L -> 3.6e-06 | E12: Worksheet A01
B13: Upper | C13: ='A01'!FldConc_U -> 7.2e-05 | E13: Worksheet A01
A14: Volume of Spill (gallons) | B14: VSGal
B15: Central | C15: ='A01'!C$45 -> 100 | D15: gallons | E15: Worksheet A01
B16: Lower | C16: ='A01'!C$46 -> 20 | E16: Worksheet A01
B17: Upper | C17: ='A01'!C$47 -> 200 | E17: Worksheet A01
A18: Conversion factor for gallons to liters | B18: Conv | C18: 3.785 | D18: liters/gal
A19: Volume of Spill (liters) | B19: VSLit | C19: VSGal x Conv
B20: Central | C20: =C15*C$18 -> 378.5 | D20: liters | E20: Eq
B21: Lower | C21: =C16*C$18 -> 75.7 | D21: liters | E21: Eq
B22: Upper | C22: =C17*C$18 -> 757 | D22: liters | E22: Eq
A23: Concentration in pond water at various times after as spill | B23: ConcWat | C23: Conc × 1000 mL/L × VSL ÷ VPL
A24: Time | B24: Central | C24: Lower | D24: Upper
A25: 0 | B25: =C11*1000*C20/C$9 -> 4.542e-06 | C25: =C12*1000*C21/C$9 -> 2.7252e-07 | D25: =C13*1000*C22/C$9 -> 5.4504e-05 | E25: mg/L

Sheet B04c
A1: Concentration in pond water after direct spray or after drift at distances downwind in feet from the application site
A2: Short Title | B2: Pond, Drift | E2: PondDrift3Apps
A3: Receptor | B3: Pond
A4: Duration | B4: Acute
A5: Parameter/Assumption | B5: Code / Range | C5: Equation/ Value | D5: Units | E5: Reference/Designation
A6: Application rate | B6: ApRt | C6: ='A01'!ApRt_C -> 3e-06 | D6: lb/acre | E6: Worksheet A01
A7: Surface Area of Water Column | B7: SA | C7: 1 | D7: m2
A8: Depth of Pond | B8: Depth | C8: ='A01'!C$26 -> 1 | D8: meter | E8: Worksheet A01
A9: Volume of Water Column | B9: V | C9: = SA × Depth
B10: VPM | C10: =C7*C8 -> 1 | D10: m3 | E10: Eq
B11: VPL | C11: =1000*C10 -> 1000 | D11: liters | E11: Eq
A12: Proportion of Drift at distances downwind in feet [0 feet = direct spray] | B12: Prop | C12: Aerial | D12: High Boom Ground Broadcast | E12: Low Boom Ground Broadcast | F12: Backpack
A13: 0 | C13: 1 | D13: 1 | E13: 1 | F13: 1
A14: 25 | C14: 0.223 | D14: 0.104 | E14: 0.035 | F14: 0.00832
A15: 50 | C15: 0.171 | D15: 0.05 | E15: 0.0177 | F15: 0.00433
A16: 100 | C16: 0.0979 | D16: 0.0248 | E16: 0.00948 | F16: 0.00241
A17: 300 | C17: 0.0312 | D17: 0.00753 | E17: 0.0035 | F17: 0.000941
A18: 500 | C18: 0.0192 | D18: 0.00391 | E18: 0.00209 | F18: 0.000579
A19: 900 | C19: 0.0124 | D19: 0.00166 | E19: 0.00109 | F19: 0.000312
A20: Converstion Factor | B20: Conv | C20: 112.1 | D20: mg/m2 per lb/acre
A21: Concentration in water at distances downwind in feet | B21: Conc = | C21: SA × Prop × ApR × Conv / VPL
A22: Concentration in water at distances downwind in feet | C22: Aerial | D22: High Boom Ground Broadcast | E22: Low Boom Ground Broadcast | F22: Backpack
A23: =A13 -> 0 | C23: =$C$7*C13*$C$6*$C$20/$C$11 -> 3.363e-07 | D23: =$C$7*D13*$C$6*$C$20/$C$11 -> 3.363e-07 | E23: =$C$7*E13*$C$6*$C$20/$C$11 -> 3.363e-07 | F23: =$C$7*F13*$C$6*$C$20/$C$11 -> 3.363e-07 | G23: mg/L
A24: 25 | C24: =$C$7*C14*$C$6*$C$20/$C$11 -> 7.49949e-08 | D24: 3.49752e-08 | E24: 1.17705e-08 | F24: 2.798016e-09 | G24: mg/L
A25: 50 | C25: 5.75073e-08 | D25: 1.6815e-08 | E25: 5.95251e-09 | F25: 1.456179e-09 | G25: mg/L
A26: 100 | C26: 3.292377e-08 | D26: 8.34024e-09 | E26: 3.188124e-09 | F26: 8.10483e-10 | G26: mg/L
A27: 300 | C27: 1.049256e-08 | D27: 2.532339e-09 | E27: 1.17705e-09 | F27: 3.164583e-10 | G27: mg/L
A28: 500 | C28: 6.45696e-09 | D28: 1.314933e-09 | E28: 7.02867e-10 | F28: 1.947177e-10 | G28: mg/L
A29: 900 | C29: 4.17012e-09 | D29: 5.58258e-10 | E29: 3.66567e-10 | F29: 1.049256e-10 | G29: mg/L

Sheet B04d
A1: Concentration in stream water after direct spray or after drift at distances downwind in feet from the application site
A2: Short Title | B2: Stream, Drift | E2: StreamDrift3Apps
A3: Receptor | B3: Stream
A4: Duration | B4: Acute
A5: Parameter/Assumption | B5: Code / Range | C5: Equation/ Value | D5: Units | E5: Reference/Designation
A6: Application rate, lbs/acre | B6: ApRt | C6: ='A01'!ApRt_C -> 3e-06 | D6: lb/acre | E6: Worksheet A01
A7: Flow rate of stream | B7: Flow | C7: ='A01'!C$27 -> 710000 | D7: L/day | E7: Worksheet A01
A8: Converstion Factor, lb/acre to mg/m2 | B8: Conv1 | C8: 112.1 | D8: mg/m2 per lb/acre
A9: Deposition rate, nominal | C9: Dep = ApR × Conv1
B10: Dep | C10: =C6*C8 -> 0.0003363 | D10: mg/m2 | E10: Eq
A11: Length of steam segment | B11: L | C11: ='A01'!C$28 -> 1038 | D11: feet | E11: Worksheet A01
A12: Width of steam segment | B12: W | C12: ='A01'!C$29 -> 6 | D12: feet | E12: Worksheet A01
A13: Surface Area of Stream Sprayed, square feet | B13: SA_ft | C13: =C11*C12 -> 6228 | D13: ft2 | E13: Eq
A14: Converstion Factor, square feet to square meters | B14: Conv2 | C14: 0.0929 | D14: m2/ft2
A15: Surface Area of Stream Sprayed, square meters | B15: SA_msq | C15: =C13*C14 -> 578.5812 | E15: Eq
A16: Amount deposited on stream surface on spray day | B16: Amnt | C16: =C10*C15 -> 0.1945768576 | D16: mg/day | E16: Eq
A17: Proportion of Drift at distances downwind in feet [0 feet = direct spray] | B17: Prop | C17: Aerial | D17: High Boom Ground Broadcast | E17: Low Boom Ground Broadcast | F17: Backpack
A18: 0 | C18: 1 | D18: 1 | E18: 1 | F18: 1
A19: 25 | C19: 0.223 | D19: 0.104 | E19: 0.035 | F19: 0.00832
A20: 50 | C20: 0.171 | D20: 0.05 | E20: 0.0177 | F20: 0.00433
A21: 100 | C21: 0.0979 | D21: 0.0248 | E21: 0.00948 | F21: 0.00241
A22: 300 | C22: 0.0312 | D22: 0.00753 | E22: 0.0035 | F22: 0.000941
A23: 500 | C23: 0.0192 | D23: 0.00391 | E23: 0.00209 | F23: 0.000579
A24: 900 | C24: 0.0124 | D24: 0.00166 | E24: 0.00109 | F24: 0.000312
B25: Conc = | C25: Amnt × Prop / Flow
A26: Concentration in water at distances downwind in feet | C26: Aerial | D26: High Boom Ground Broadcast | E26: Low Boom Ground Broadcast | F26: Backpack
A27: =A18 -> 0 | C27: =$C$16 * C18 /$C$7 -> 2.740519121e-07 | D27: =$C$16 * D18 /$C$7 -> 2.740519121e-07 | E27: =$C$16 * E18 /$C$7 -> 2.740519121e-07 | F27: =$C$16 * F18 /$C$7 -> 2.740519121e-07 | G27: mg/L
A28: 25 | C28: =$C$16 * C19 /$C$7 -> 6.111357639e-08 | D28: 2.850139885e-08 | E28: 9.591816922e-09 | F28: 2.280111908e-09 | G28: mg/L
A29: 50 | C29: 4.686287696e-08 | D29: 1.37025956e-08 | E29: 4.850718843e-09 | F29: 1.186644779e-09 | G29: mg/L
A30: 100 | C30: 2.682968219e-08 | D30: 6.796487419e-09 | E30: 2.598012126e-09 | F30: 6.604651081e-10 | G30: mg/L
A31: 300 | C31: 8.550419656e-09 | D31: 2.063610898e-09 | E31: 9.591816922e-10 | F31: 2.578828492e-10 | G31: mg/L
A32: 500 | C32: 5.261796711e-09 | D32: 1.071542976e-09 | E32: 5.727684962e-10 | F32: 1.586760571e-10 | G32: mg/L
A33: 900 | C33: 3.398243709e-09 | D33: 4.54926174e-10 | E33: 2.987165841e-10 | F33: 8.550419656e-11 | G33: mg/L

Sheet B05a
A1: Concentration of Hexachlorobenzene in Contaminated Fruit
A2: Short Title | B2: Concentration in food item | E2: FoodConcV6
A3: Material consumed | C3: Fruit | E3: Scenario parameter
A4: Parameter/Assumption | B4: Code / Range | C4: Equation/ Value | D4: Units | E4: Reference/Designation
A5: Application Information
A6: Application Rate (lbs/acre) | B6: ApRt | C6: ='A01'!ApRt_C -> 3e-06 | D6: lb/acre | E6: Worksheet A01
A7: Number of applications | B7: n | C7: ='A01'!C$20 -> 1 | D7: unitless | E7: Worksheet A01
A8: Interval between applications | B8: intv | C8: ='A01'!C$21 -> 1 | D8: days | E8: Worksheet A01
A9: Special Adjustments (See Note 1)
A10: Metabolite Adjustment Factor : (See risk assessment if this has a value other than 1.) | B10: MetFact
B11: Central | C11: 1 | D11: unitless | E11: Default
B12: Lower | C12: 1 | E12: Default
B13: Upper | C13: 1 | E13: Default
A14: Toxic Equivalency Factor for formulation: (See risk assessment if this has a value other than 1.) | B14: TEF
B15: Central | C15: ='A01'!C$37 -> 1 | D15: Unitless | E15: Worksheet A01
B16: Lower | C16: ='A01'!C$38 -> 1 | E16: Worksheet A01
B17: Upper | C17: ='A01'!C$39 -> 1 | E17: Worksheet A01
A18: Acute Concentrations
A19: Residue Rates | B19: rr
B20: Central | C20: ='A01'!C$65 -> 7 | D20: mg/kg food per lb/acre | E20: Worksheet A01
B21: Lower | C21: ='A01'!C$66 -> 3.2 | E21: Worksheet A01
B22: Upper | C22: ='A01'!C$67 -> 15 | E22: Worksheet A01
A23: Drift | B23: Drift
B24: Central | C24: ='A01'!C$41 -> 1 | D24: proportion | E24: Worksheet A01
B25: Lower | C25: ='A01'!C$42 -> 1 | E25: Worksheet A01
B26: Upper | C26: ='A01'!C$43 -> 1 | E26: Worksheet A01
A27: Concentration on commodity immediately after first application. | B27: C0 | C27: ApR × rr × Drift × MetFact × TEF
B28: Central | C28: =C$6*C20*$C$24*C11*C15 -> 2.1e-05 | E28: Eq
B29: Lower | C29: =C$6*C21*$C$24*C12*C16 -> 9.6e-06 | E29: Eq
B30: Upper | C30: =C$6*C22*$C$24*C13*C17 -> 4.5e-05 | E30: Eq
A31: Half-life on commodity | B31: Halflife
B32: Central | C32: ='B01'!$C$17 -> 3 | D32: Days | E32: Section 3.2.3.6
B33: Lower | C33: ='B01'!$C$18 -> 3 | E33: Section 3.2.3.6
B34: Upper | C34: ='B01'!$C$19 -> 3 | E34: Section 3.2.3.6
A35: Decay Coefficient | B35: k | C35: Ln(2)/Halflife
B36: Central | C36: =LN(2)/C32 -> 0.2310490602 | D36: Days-1 | E36: Eq
B37: Upper | C37: =LN(2)/C33 -> 0.2310490602 | D37: Note 2 | E37: Eq
B38: Lower | C38: =LN(2)/C34 -> 0.2310490602 | D38: Note 2 | E38: Eq
A39: Proportion remaining at end of each application interval | B39: p | C39: exp( -k × intv)
B40: Central | C40: =EXP(-C36*C$8) -> 0.793700526 | D40: proportion | E40: Eq
B41: Lower | C41: =EXP(-C37*C$8) -> 0.793700526 | E41: Eq
B42: Upper | C42: =EXP(-C38*C$8) -> 0.793700526 | E42: Eq
A43: Concentration on commodity immediately after last application. | B43: Cn | C43: Cn = C0 × (1- pn) ÷ (1- p)
B44: Central | C44: =C28 * (1-C40^C$7)/(1-C40) -> 2.1e-05 | D44: mg/kg food item | E44: Eq
B45: Lower | C45: =C29 * (1-C41^C$7)/(1-C41) -> 9.6e-06 | E45: Eq
B46: Upper | C46: =C30 * (1-C42^C$7)/(1-C42) -> 4.5e-05 | E46: Eq
A47: Longer-term Concentrations
A48: Duration for time-weighted average exposure | B48: T | C48: ='A01'!C$30 -> 365 | D48: Days | E48: Worksheet A01
A49: Time-weighted average concentration on commodity over time, T, after the last application. | B49: ConcTWA | C49: Cn × (1-e-kT) ÷ (k T)
B50: Central | C50: =C44*(1-EXP(-C36*$C$48))/(C36*$C$48) -> 2.490131166e-07 | D50: mg/kg food item | E50: Eq
B51: Lower | C51: =C45*(1-EXP(-C37*$C$48))/(C37*$C$48) -> 1.138345676e-07 | E51: Eq
B52: Upper | C52: 5.335995357e-07 | E52: Eq
A53: Years of Exposure | B53: ExpYr | C53: ='A01'!C23 -> 6 | D53: Years
A54: Lifespan | B54: LS | C54: ='A01'!C24 -> 70 | D54: Years
A55: Lifetime-weighted average concentration. | B55: LSConcTWA | C55: (ExpYr ÷ LS) x ConcTWA
B56: Central | C56: =(C$53/C$54)*C50 -> 2.134398143e-08 | D56: mg/kg food item | E56: Eq
B57: Lower | C57: =(C$53/C$54)*C51 -> 9.757248652e-09 | E57: Eq
B58: Upper | C58: 4.573710306e-08 | E58: Eq

Sheet B05b
A1: Concentration of Pesticide in Contaminated Broadleaf Vegetation
A2: Short Title | B2: Concentration in food item | E2: FoodConcV6
A3: Material consumed | C3: Broadleaf Vegetation | E3: Scenario parameter
A4: Parameter/Assumption | B4: Code / Range | C4: Equation/ Value | D4: Units | E4: Reference/Designation
A5: Application Information
A6: Application Rate (lbs/acre) | B6: ApRt | C6: ='A01'!ApRt_C -> 3e-06 | D6: lb/acre | E6: Worksheet A01
A7: Number of applications | B7: n | C7: ='A01'!C$20 -> 1 | D7: unitless | E7: Worksheet A01
A8: Interval between applications | B8: intv | C8: ='A01'!C$21 -> 1 | D8: days | E8: Worksheet A01
A9: Special Adjustments (See Note 1)
A10: Metabolite Adjustment Factor : (See risk assessment if this has a value other than 1.) | B10: MetFact
B11: Central | C11: 1 | D11: unitless | E11: Default
B12: Lower | C12: 1 | E12: Default
B13: Upper | C13: 1 | E13: Default
A14: Toxic Equivalency Factor for formulation: (See risk assessment if this has a value other than 1.) | B14: TEF
B15: Central | C15: ='A01'!C$37 -> 1 | D15: Unitless | E15: Worksheet A01
B16: Lower | C16: ='A01'!C$38 -> 1 | E16: Worksheet A01
B17: Upper | C17: ='A01'!C$39 -> 1 | E17: Worksheet A01
A18: Acute Concentrations
A19: Residue Rates | B19: rr
B20: Central | C20: ='A01'!C$61 -> 45 | D20: mg/kg food per lb/acre | E20: Worksheet A01
B21: Lower | C21: ='A01'!C$62 -> 15 | E21: Worksheet A01
B22: Upper | C22: ='A01'!C$63 -> 135 | E22: Worksheet A01
A23: Drift | B23: Drift
B24: Central | C24: ='A01'!C$41 -> 1 | D24: proportion | E24: Worksheet A01
B25: Lower | C25: ='A01'!C$42 -> 1 | E25: Worksheet A01
B26: Upper | C26: ='A01'!C$43 -> 1 | E26: Worksheet A01
A27: Concentration on commodity immediately after first application. | B27: C0 | C27: ApR × rr × Drift × MetFact × TEF
B28: Central | C28: =C$6*C20*$C$24*C11*C15 -> 0.000135 | E28: Eq
B29: Lower | C29: =C$6*C21*$C$24*C12*C16 -> 4.5e-05 | E29: Eq
B30: Upper | C30: =C$6*C22*$C$24*C13*C17 -> 0.000405 | E30: Eq
A31: Half-life on commodity | B31: Halflife
B32: Central | C32: ='B01'!$C$20 -> 3 | D32: Days | E32: Section 3.2.3.6
B33: Lower | C33: ='B01'!$C$21 -> 3 | E33: Section 3.2.3.6
B34: Upper | C34: ='B01'!$C$22 -> 3 | E34: Section 3.2.3.6
A35: Decay Coefficient | B35: k | C35: Ln(2)/Halflife
B36: Central | C36: =LN(2)/C32 -> 0.2310490602 | D36: Days-1 | E36: Eq
B37: Upper | C37: =LN(2)/C33 -> 0.2310490602 | D37: Note 2 | E37: Eq
B38: Lower | C38: =LN(2)/C34 -> 0.2310490602 | D38: Note 2 | E38: Eq
A39: Proportion remaining at end of each application interval | B39: p | C39: exp( -k × intv)
B40: Central | C40: =EXP(-C36*C$8) -> 0.793700526 | D40: proportion | E40: Eq
B41: Lower | C41: =EXP(-C37*C$8) -> 0.793700526 | E41: Eq
B42: Upper | C42: =EXP(-C38*C$8) -> 0.793700526 | E42: Eq
A43: Concentration on commodity immediately after last application. | B43: Cn | C43: Cn = C0 × (1- pn) ÷ (1- p)
B44: Central | C44: =C28 * (1-C40^C$7)/(1-C40) -> 0.000135 | D44: mg/kg food item | E44: Eq
B45: Lower | C45: =C29 * (1-C41^C$7)/(1-C41) -> 4.5e-05 | E45: Eq
B46: Upper | C46: =C30 * (1-C42^C$7)/(1-C42) -> 0.000405 | E46: Eq
A47: Longer-term Concentrations
A48: Duration for time-weighted average exposure | B48: T | C48: ='A01'!C$30 -> 365 | D48: Days | E48: Worksheet A01
A49: Time-weighted average concentration on commodity over time, T, after the last application. | B49: ConcTWA | C49: Cn × (1-e-kT) ÷ (k T)
B50: Central | C50: =C44*(1-EXP(-C36*$C$48))/(C36*$C$48) -> 1.600798607e-06 | D50: mg/kg food item | E50: Eq
B51: Lower | C51: =C45*(1-EXP(-C37*$C$48))/(C37*$C$48) -> 5.335995357e-07 | E51: Eq
B52: Upper | C52: 4.802395821e-06 | E52: Eq
A53: Years of Exposure | B53: ExpYr | C53: ='A01'!C23 -> 6 | D53: Years
A54: Lifespan | B54: LS | C54: ='A01'!C24 -> 70 | D54: Years
A55: Lifetime-weighted average concentration. | B55: LSConcTWA | C55: (ExpYr ÷ LS) x ConcTWA
B56: Central | C56: =(C$53/C$54)*C50 -> 1.372113092e-07 | D56: mg/kg food item | E56: Eq
B57: Lower | C57: =(C$53/C$54)*C51 -> 4.573710306e-08 | E57: Eq
B58: Upper | C58: 4.116339275e-07 | E58: Eq

Sheet C01a
A1: Exposure estimates for Backpack Worker based on the amount of material handled per day
A2: Short Title | B2: General exposure | E2: WkGenExp
A3: Receptor | B3: Backpack Worker | E3: Worksheet A01
A4: Duration | B4: Chronic
A5: Parameter/Assumption | B5: Code / Range | C5: Equation/ Value | D5: Units | E5: Reference/Equation
A6: Application rates | B6: ApRt | C6: ='A01'!ApRt_C -> 3e-06 | D6: lb/acre | E6: Worksheet A01
A7: Hours of application per day | B7: Hrs
B8: Central | C8: ='A01'!C$77 -> 7 | D8: hours | E8: Worksheet A01
B9: Lower | C9: ='A01'!C$78 -> 6 | E9: Worksheet A01
B10: Upper | C10: ='A01'!C$79 -> 8 | E10: Worksheet A01
A11: Acres treated per hour | B11: APH
B12: Central | C12: ='A01'!C$73 -> 0.625 | D12: acres/hour | E12: Worksheet A01
B13: Lower | C13: ='A01'!C$74 -> 0.25 | E13: Worksheet A01
B14: Upper | C14: ='A01'!C$75 -> 1 | E14: Worksheet A01
A15: Acres treated per day: | B15: ATD | C15: Hrs × APH
B16: Central | C16: =C8*C12 -> 4.375 | D16: acres/day | E16: Eq
B17: Lower | C17: =C9*C13 -> 1.5 | E17: Eq
B18: Upper | C18: =C10*C14 -> 8 | E18: Eq
A19: Toxic Equivalency Factor for formulation: (See risk assessment if this has a value other than 1.) | B19: TEF
B20: Central | C20: ='A01'!C$37 -> 1 | D20: unitless | E20: Worksheet A01
B21: Lower | C21: ='A01'!C$38 -> 1 | E21: Worksheet A01
B22: Upper | C22: ='A01'!C$39 -> 1 | E22: Worksheet A01
A23: Amount handled per day: | B23: Amnt | C23: ApRt × ATD × TEF
B24: Central | C24: =C$6*C16 *C20 -> 1.3125e-05 | D24: lb/day | E24: Eq
B25: Lower | C25: =C$6*C17 *C21 -> 4.5e-06 | E25: Eq
B26: Upper | C26: =C$6*C18 *C22 -> 2.4e-05 | E26: Eq
A27: Absorbed dose rate: | B27: ADR
B28: Central | C28: ='A01'!C$69 -> 0.003 | D28: (mg agent/kg bw) ÷ (lbs agent handled per day) | E28: Worksheet A01
B29: Lower | C29: ='A01'!C$70 -> 0.0003 | E29: Worksheet A01
B30: Upper | C30: ='A01'!C$71 -> 0.01 | E30: Worksheet A01
A31: Clothing Protection Factor | B31: Prot
B32: Central | C32: ='A01'!C$33 -> 0 | D32: Unitless (value between 0 [no protection] and 1 [complete protection]) | E32: Worksheet A01
B33: Upper | C33: ='A01'!C$35 -> 0 | E33: Worksheet A01
B34: Lower | C34: ='A01'!C$34 -> 0 | E34: Worksheet A01
A35: Absorbed dose | B35: Dose | C35: Amnt × ADR × (1-Prot)
B36: Central | C36: =C24*C28*(1-C32) -> 3.9375e-08 | D36: mg/kg bw/day | E36: Eq
B37: Lower | C37: =C25*C29*(1-C33) -> 1.35e-09 | E37: Eq
B38: Upper | C38: =C26*C30*(1-C34) -> 2.4e-07 | E38: Eq

Sheet C01b
A1: Exposure estimates for Ground Boom Worker based on the amount of material handled per day
A2: Short Title | B2: General exposure | E2: WkGenExp
A3: Receptor | B3: Ground Boom Worker | E3: Worksheet A01
A4: Duration | B4: Chronic
A5: Parameter/Assumption | B5: Code / Range | C5: Equation/ Value | D5: Units | E5: Reference/Equation
A6: Application rates | B6: ApRt | C6: ='A01'!ApRt_C -> 3e-06 | D6: lb/acre | E6: Worksheet A01
A7: Hours of application per day | B7: Hrs
B8: Central | C8: 7 | D8: hours | E8: Worksheet A01
B9: Lower | C9: 6 | E9: Worksheet A01
B10: Upper | C10: 8 | E10: Worksheet A01
A11: Acres treated per hour | B11: APH
B12: Central | C12: 16 | D12: acres/hour | E12: Worksheet A01
B13: Lower | C13: 11 | E13: Worksheet A01
B14: Upper | C14: 21 | E14: Worksheet A01
A15: Acres treated per day: | B15: ATD | C15: Hrs × APH
B16: Central | C16: =C8*C12 -> 112 | D16: acres/day | E16: Eq
B17: Lower | C17: =C9*C13 -> 66 | E17: Eq
B18: Upper | C18: =C10*C14 -> 168 | E18: Eq
A19: Toxic Equivalency Factor for formulation: (See risk assessment if this has a value other than 1.) | B19: TEF
B20: Central | C20: ='A01'!C$37 -> 1 | D20: unitless | E20: Worksheet A01
B21: Lower | C21: ='A01'!C$38 -> 1 | E21: Worksheet A01
B22: Upper | C22: ='A01'!C$39 -> 1 | E22: Worksheet A01
A23: Amount handled per day: | B23: Amnt | C23: ApRt × ATD × TEF
B24: Central | C24: =C$6*C16 *C20 -> 0.000336 | D24: lb/day | E24: Eq
B25: Lower | C25: =C$6*C17 *C21 -> 0.000198 | E25: Eq
B26: Upper | C26: =C$6*C18 *C22 -> 0.000504 | E26: Eq
A27: Absorbed dose rate: | B27: ADR
B28: Central | C28: 0.0002 | D28: (mg agent/kg bw) ÷ (lbs agent handled per day) | E28: Worksheet A01
B29: Lower | C29: 1e-05 | E29: Worksheet A01
B30: Upper | C30: 0.0009 | E30: Worksheet A01
A31: Clothing Protection Factor | B31: Prot
B32: Central | C32: ='A01'!C$33 -> 0 | D32: Unitless (value between 0 [no protection] and 1 [complete protection]) | E32: Worksheet A01
B33: Upper | C33: ='A01'!C$35 -> 0 | E33: Worksheet A01
B34: Lower | C34: ='A01'!C$34 -> 0 | E34: Worksheet A01
A35: Absorbed dose | B35: Dose | C35: Amnt × ADR × (1-Prot)
B36: Central | C36: =C24*C28*(1-C32) -> 6.72e-08 | D36: mg/kg bw/day | E36: Eq
B37: Lower | C37: =C25*C29*(1-C33) -> 1.98e-09 | E37: Eq
B38: Upper | C38: =C26*C30*(1-C34) -> 4.536e-07 | E38: Eq

Sheet C01c
A1: Exposure estimates for Aerial Spray Worker based on the amount of material handled per day
A2: Short Title | B2: General exposure | E2: WkGenExp
A3: Receptor | B3: Aerial Spray Worker | E3: Worksheet A01
A4: Duration | B4: Chronic
A5: Parameter/Assumption | B5: Code / Range | C5: Equation/ Value | D5: Units | E5: Reference/Equation
A6: Application rates | B6: ApRt | C6: ='A01'!ApRt_C -> 3e-06 | D6: lb/acre | E6: Worksheet A01
A7: Hours of application per day | B7: Hrs
B8: Central | C8: 7 | D8: hours | E8: Worksheet A01
B9: Lower | C9: 6 | E9: Worksheet A01
B10: Upper | C10: 8 | E10: Worksheet A01
A11: Acres treated per hour | B11: APH
B12: Central | C12: 70 | D12: acres/hour | E12: Worksheet A01
B13: Lower | C13: 40 | E13: Worksheet A01
B14: Upper | C14: 100 | E14: Worksheet A01
A15: Acres treated per day: | B15: ATD | C15: Hrs × APH
B16: Central | C16: =C8*C12 -> 490 | D16: acres/day | E16: Eq
B17: Lower | C17: =C9*C13 -> 240 | E17: Eq
B18: Upper | C18: =C10*C14 -> 800 | E18: Eq
A19: Toxic Equivalency Factor for formulation: (See risk assessment if this has a value other than 1.) | B19: TEF
B20: Central | C20: ='A01'!C$37 -> 1 | D20: unitless | E20: Worksheet A01
B21: Lower | C21: ='A01'!C$38 -> 1 | E21: Worksheet A01
B22: Upper | C22: ='A01'!C$39 -> 1 | E22: Worksheet A01
A23: Amount handled per day: | B23: Amnt | C23: ApRt × ATD × TEF
B24: Central | C24: =C$6*C16 *C20 -> 0.00147 | D24: lb/day | E24: Eq
B25: Lower | C25: =C$6*C17 *C21 -> 0.00072 | E25: Eq
B26: Upper | C26: =C$6*C18 *C22 -> 0.0024 | E26: Eq
A27: Absorbed dose rate: | B27: ADR
B28: Central | C28: 3e-05 | D28: (mg agent/kg bw) ÷ (lbs agent handled per day) | E28: Worksheet A01
B29: Lower | C29: 1e-06 | E29: Worksheet A01
B30: Upper | C30: 0.0001 | E30: Worksheet A01
A31: Clothing Protection Factor | B31: Prot
B32: Central | C32: ='A01'!C$33 -> 0 | D32: Unitless (value between 0 [no protection] and 1 [complete protection]) | E32: Worksheet A01
B33: Upper | C33: ='A01'!C$35 -> 0 | E33: Worksheet A01
B34: Lower | C34: ='A01'!C$34 -> 0 | E34: Worksheet A01
A35: Absorbed dose | B35: Dose | C35: Amnt × ADR × (1-Prot)
B36: Central | C36: =C24*C28*(1-C32) -> 4.41e-08 | D36: mg/kg bw/day | E36: Eq
B37: Lower | C37: =C25*C29*(1-C33) -> 7.2e-10 | E37: Eq
B38: Upper | C38: =C26*C30*(1-C34) -> 2.4e-07 | E38: Eq

Sheet D04a
A1: Consumption of Fruit by a Adult Female, Chronic exposure.
A2: Short Title | B2: Contaminated Fruit | E2: FdPropBwV6
A3: Receptor | B3: Adult Female
A4: Duration | B4: Chronic | E4: Scenario parameter
A5: Material consumed | B5: Fruit
A6: Parameter/Assumption | B6: Code / Range | C6: Equation/ Value | D6: Units | E6: Reference/Designation
A7: Commodity
A8: Concentration on vegetation | B8: Conc
B9: Central | C9: =B05a!Chronic_C -> 2.134398143e-08 | D9: mg/kg food | E9: ='B05a'!Chronic_C
B10: Lower | C10: =B05a!Chronic_L -> 9.757248652e-09 | E10: ='B05a'!Chronic_L
B11: Upper | C11: =B05a!Chronic_U -> 4.573710306e-08 | E11: ='B05a'!Chronic_U
A12: Receptor
A13: Amount consumed per day per unit body weight | B13: Amnt
B14: Central | C14: ='A03'!$E$6 -> 0.00168 | D14: kg food/kg BW per day | E14: U.S. EPA/ORD 1996
B15: Lower | C15: ='A03'!$E$7 -> 0.00168 | E15: U.S. EPA/ORD 1996
B16: Upper | C16: ='A03'!$E$8 -> 0.01244 | E16: U.S. EPA/ORD 1996
A17: Estimate
A18: Dose | B18: Dose | C18: Conc × Amnt
B19: Central | C19: =C14*C9 -> 3.58578888e-11 | D19: mg/kg bw | E19: Eq
B20: Lower | C20: =C15*C10 -> 1.639217774e-11 | E20: Eq
B21: Upper | C21: =C16*C11 -> 5.68969562e-10 | E21: Eq

Sheet D04b
A1: Consumption of Vegetation by a Adult Female, Chronic exposure.
A2: Short Title | B2: Contaminated Vegetation | E2: FdPropBwV6
A3: Receptor | B3: Adult Female
A4: Duration | B4: Chronic | E4: Scenario parameter
A5: Material consumed | B5: Vegetation
A6: Parameter/Assumption | B6: Code / Range | C6: Equation/ Value | D6: Units | E6: Reference/Designation
A7: Commodity
A8: Concentration on vegetation | B8: Conc
B9: Central | C9: =B05b!Chronic_C -> 1.372113092e-07 | D9: mg/kg food | E9: ='B05b'!Chronic_C
B10: Lower | C10: =B05b!Chronic_L -> 4.573710306e-08 | E10: ='B05b'!Chronic_L
B11: Upper | C11: =B05b!Chronic_U -> 4.116339275e-07 | E11: ='B05b'!Chronic_U
A12: Receptor
A13: Amount consumed per day per unit body weight | B13: Amnt
B14: Central | C14: ='A03'!$E$13 -> 0.0036 | D14: kg food/kg BW per day | E14: U.S. EPA/ORD 1996
B15: Lower | C15: ='A03'!$E$14 -> 0.00075 | E15: U.S. EPA/ORD 1996
B16: Upper | C16: ='A03'!$E$15 -> 0.01 | E16: U.S. EPA/ORD 1996
A17: Estimate
A18: Dose | B18: Dose | C18: Conc × Amnt
B19: Central | C19: =C14*C9 -> 4.93960713e-10 | D19: mg/kg bw | E19: Eq
B20: Lower | C20: =C15*C10 -> 3.430282729e-11 | E20: Eq
B21: Upper | C21: =C16*C11 -> 4.116339275e-09 | E21: Eq

Sheet D04Soil
A1: Consumption of Fruit by a Adult Female, Chronic exposure.
A2: Short Title | B2: Contaminated Tuber | E2: FdPropBwV6
A3: Receptor | B3: Adult Female
A4: Duration | B4: Chronic | E4: Scenario parameter
A5: Material consumed | B5: Tuber
A6: Parameter/Assumption | B6: Code / Range | C6: Equation/ Value | D6: Units | E6: Reference/Designation
A7: Soil
A8: Peak concentration in soil at modeled application rate | B8: MdSoilConc | E8: Risk Assessment
B9: Central | C9: 0.181 | D9: mg/kg soil
B10: Lower | C10: 0.175
B11: Upper | C11: 0.195
A12: Modeled Application Rate | B12: MdRt | C12: 0.1 | D12: lb/acre | E12: Risk Assessment
A13: Peak concentration at unit application rate of 1 lb/acre (Soil Contamination Rate) | B13: SCR | C13: = MdSoilConc / MdRt
B14: Central | C14: =C9/C$12 -> 1.81 | D14: mg/kg soil per lb/acre | E14: Eq
B15: Lower | C15: =C10/C$12 -> 1.75 | E15: Eq
B16: Upper | C16: 1.95 | E16: Eq
A17: Functional Application Rate | B17: ApRt | C17: ='A01'!ApRt_C -> 3e-06 | D17: lb/acre | E17: Worksheet A01
A18: Estimated Peak concentration in soil. | B18: SoilConc | C18: = SCR x ApRt
B19: Central | C19: =C14*C$17 -> 5.43e-06 | D19: mg/kg soil per lb/acre | E19: Eq
B20: Lower | C20: =C15*C$17 -> 5.25e-06 | E20: Eq
B21: Upper | C21: 5.85e-06 | E21: Eq
A22: Bioconcentration Factor from Soil | B22: BCF | C22: 19 | E22: Risk Assessment
A23: Commodity
A24: Concentration in comodity | B24: Conc | C24: = SoilConc x BCF
B25: Central | C25: =C19*C$22 -> 0.00010317 | D25: mg/kg food | E25: Eq
B26: Lower | C26: =C20*C$22 -> 9.975e-05 | E26: Eq
B27: Upper | C27: 0.00011115 | E27: Eq
A28: Receptor
A29: Amount consumed per day per unit body weight | B29: Amnt
B30: Central | C30: ='A03'!E6 -> 0.00168 | D30: kg food/kg BW per day | E30: Risk Assessment
B31: Lower | C31: ='A03'!E7 -> 0.00168
B32: Upper | C32: ='A03'!E8 -> 0.01244
A33: Duration Adjustments
A34: Years of Exposure | B34: ExpYr | C34: ='A01'!C23 -> 6 | D34: Years
A35: Lifespan | B35: LS | C35: ='A01'!C24 -> 70 | D35: Years
A36: Estimate
A37: Dose | B37: Dose | C37: Conc × Amnt × ExpYr / LS
B38: Central | C38: =C30*C25 * C$34/C$35 -> 1.485648e-08 | D38: mg/kg bw | E38: Eq
B39: Lower | C39: =C31*C26 * C$34/C$35 -> 1.4364e-08 | E39: Eq
B40: Upper | C40: 1.185176571e-07 | E40: Eq

Sheet D07
A1: Consumption of contaminated water by Adult Male, Longer-term Conentrations
A2: Short Title | B2: Longer-term Conentrations | E2: WatAmntV6
A3: Receptor | B3: Adult Male
A4: Duration | B4: Chronic | E4: Scenario parameter
A5: Parameter/Assumption | B5: Code / Range | C5: Equation/ Value | D5: Units | E5: Reference/Designation
A6: Concentration in water | B6: ConcWat
B7: Central | C7: =B04a!Chronic_C -> 1.17e-09 | D7: mg/L | E7: ='B04a'!Chronic_C
B8: Lower | C8: =B04a!Chronic_L -> 1.2e-10 | E8: ='B04a'!Chronic_L
B9: Upper | C9: =B04a!Chronic_U -> 1.5e-08 | E9: ='B04a'!Chronic_U
A10: Receptor
A11: Amount of water consumed in one day | B11: Amnt
B12: Central | C12: ='A03'!$E$31 -> 2 | D12: liters/day | E12: U.S. EPA/ORD 1996
B13: Lower | C13: ='A03'!$E$32 -> 1.4 | E13: U.S. EPA/ORD 1996
B14: Upper | C14: ='A03'!$E$33 -> 2.4 | E14: U.S. EPA/ORD 1996
A15: Body weight | B15: BW | C15: =A02a!$C$8 -> 70 | D15: kg | E15: ICRP 1975
A16: Dose | B16: Dose | C16: ConcWat × Amnt ÷ BW
B17: Central | C17: =C7*C12/C$15 -> 3.342857143e-11 | D17: mg/kg | E17: Eq
B18: Lower | C18: =C8*C13/C$15 -> 2.4e-12 | D18: mg/kg | E18: Eq
B19: Upper | C19: =C9*C14/C$15 -> 5.142857143e-10 | D19: mg/kg | E19: Eq

Sheet D09a
A1: Consumption of Contaminated Fish (Longer-term), Adult Male, chronic exposure
A2: Short Title | B2: Fish consumption | E2: FishAmntV6
A3: Receptor | B3: Adult Male
A4: Duration | B4: chronic
A5: Parameter/Assumption | B5: Code / Range | C5: Equation/ Value | D5: Units | E5: Reference/Designation
A6: Water
A7: Concentration in water | B7: ConcWat | C7: ApR × WCR
B8: Central | C8: =B04a!Chronic_C -> 1.17e-09 | D8: mg/L | E8: ='B04a'!Chronic_C
B9: Lower | C9: =B04a!Chronic_L -> 1.2e-10 | E9: ='B04a'!Chronic_L
B10: Upper | C10: =B04a!Chronic_U -> 1.5e-08 | E10: ='B04a'!Chronic_U
A11: Fish
A12: Bioconcentration factor | B12: BCF
B13: Central | C13: ='B01'!$C$5 -> 20000 | D13: L/kg | E13: Section 3.2.3.5.
B14: Lower | C14: ='B01'!$C$5 -> 20000 | E14: Section 3.2.3.5.
B15: Upper | C15: ='B01'!$C$5 -> 20000 | E15: Section 3.2.3.5.
A16: Concentration in fish | B16: ConcFish | C16: ConcWat × BCF
B17: Central | C17: =C8*C13 -> 2.34e-05 | D17: mg/kg | E17: Eq
B18: Lower | C18: =C9*C14 -> 2.4e-06 | E18: Eq
B19: Upper | C19: =C10*C15 -> 0.0003 | E19: Eq
A20: Receptor
A21: Amount of fish consumed | B21: Amnt
B22: Central | C22: ='A03'!$E$19 -> 0.01 | D22: kg/day | E22: U.S. EPA/ORD 1996
B23: Lower | C23: ='A03'!$E$19 -> 0.01 | E23: U.S. EPA/ORD 1996
B24: Upper | C24: ='A03'!$E$19 -> 0.01 | E24: U.S. EPA/ORD 1996
A25: Toxic Equivalency Factor for formulation: (See risk assessment if this has a value other than 1.) | B25: TEF
B26: Central | C26: ='A01'!C$37 -> 1 | D26: Unitless | E26: Worksheet A01
B27: Lower | C27: ='A01'!C$38 -> 1 | E27: Worksheet A01
B28: Upper | C28: ='A01'!C$39 -> 1 | E28: Worksheet A01
A29: Body weight | B29: BW | C29: =A02a!$C$8 -> 70 | D29: kg | E29: ICRP 1975
A30: Dose | B30: Dose | C30: ConcFish× Amnt x TEF ÷ BW
B31: Central | C31: =C17*C22*C26/C$29 -> 3.342857143e-09 | D31: mg/kg | E31: Eq
B32: Lower | C32: =C18*C23*C27/C$29 -> 3.428571429e-10 | D32: mg/kg | E32: Eq
B33: Upper | C33: =C19*C24*C28/C$29 -> 4.285714286e-08 | D33: mg/kg | E33: Eq
E34: FishAmntV6

Sheet D09b
A1: Consumption of Contaminated Fish (Longer-term), Subsistence Populations, chronic exposure
A2: Short Title | B2: Fish consumption | E2: FishAmntV6
A3: Receptor | B3: Subsistence Populations
A4: Duration | B4: chronic
A5: Parameter/Assumption | B5: Code / Range | C5: Equation/ Value | D5: Units | E5: Reference/Designation
A6: Water
A7: Concentration in water | B7: ConcWat | C7: ApR × WCR
B8: Central | C8: =B04a!Chronic_C -> 1.17e-09 | D8: mg/L | E8: ='B04a'!Chronic_C
B9: Lower | C9: =B04a!Chronic_L -> 1.2e-10 | E9: ='B04a'!Chronic_L
B10: Upper | C10: =B04a!Chronic_U -> 1.5e-08 | E10: ='B04a'!Chronic_U
A11: Fish
A12: Bioconcentration factor | B12: BCF
B13: Central | C13: ='B01'!$C$5 -> 20000 | D13: L/kg | E13: Section 3.2.3.5.
B14: Lower | C14: ='B01'!$C$5 -> 20000 | E14: Section 3.2.3.5.
B15: Upper | C15: ='B01'!$C$5 -> 20000 | E15: Section 3.2.3.5.
A16: Concentration in fish | B16: ConcFish | C16: ConcWat × BCF
B17: Central | C17: =C8*C13 -> 2.34e-05 | D17: mg/kg | E17: Eq
B18: Lower | C18: =C9*C14 -> 2.4e-06 | E18: Eq
B19: Upper | C19: =C10*C15 -> 0.0003 | E19: Eq
A20: Receptor
A21: Amount of fish consumed | B21: Amnt
B22: Central | C22: ='A03'!$E$34 -> 0.081 | D22: kg/day | E22: U.S. EPA/ORD 1996
B23: Lower | C23: ='A03'!$E$34 -> 0.081 | E23: U.S. EPA/ORD 1996
B24: Upper | C24: ='A03'!$E$34 -> 0.081 | E24: U.S. EPA/ORD 1996
A25: Toxic Equivalency Factor for formulation: (See risk assessment if this has a value other than 1.) | B25: TEF
B26: Central | C26: ='A01'!C$37 -> 1 | D26: Unitless | E26: Worksheet A01
B27: Lower | C27: ='A01'!C$38 -> 1 | E27: Worksheet A01
B28: Upper | C28: ='A01'!C$39 -> 1 | E28: Worksheet A01
A29: Body weight | B29: BW | C29: =A02a!$C$9 -> 70 | D29: kg | E29: ICRP 1975
A30: Dose | B30: Dose | C30: ConcFish× Amnt x TEF ÷ BW
B31: Central | C31: =C17*C22*C26/C$29 -> 2.707714286e-08 | D31: mg/kg | E31: Eq
B32: Lower | C32: =C18*C23*C27/C$29 -> 2.777142857e-09 | D32: mg/kg | E32: Eq
B33: Upper | C33: =C19*C24*C28/C$29 -> 3.471428571e-07 | D33: mg/kg | E33: Eq
E34: FishAmntV6

Sheet E01
A1: Worksheet E01: Summary of Worker Exposure Assessments
A2: Application Rate: | B2: ='A01'!ApRt_C -> 3e-06 | C2: lb a.e./acre | F2: E01aV5-3Wrkr
A3: Scenario | B3: Receptor | C3: mg/kg/day or mg/kg/event | F3: Detail Worksheet
C4: Central | D4: Lower | E4: Upper
A5: Accidental/Incidental Exposures
A6: Contaminated Gloves, 1 min. | B6: Worker | C6: No exposure assessment
A7: Contaminated Gloves, 1 hour | B7: Worker | C7: No exposure assessment
A8: Spill on Hands, 1 hour | B8: Worker | C8: No exposure assessment
A9: Spill on lower legs, 1 hour | B9: Worker | C9: No exposure assessment
A10: General Exposures
B11: Backpack Applications: | C11: ='C01a'!Dose_C -> 3.9375e-08 | D11: ='C01a'!Dose_L -> 1.35e-09 | E11: ='C01a'!Dose_U -> 2.4e-07 | F11: C01a
B12: Ground Broadcast Applications: | C12: ='C01b'!Dose_C -> 6.72e-08 | D12: ='C01b'!Dose_L -> 1.98e-09 | E12: ='C01b'!Dose_U -> 4.536e-07 | F12: C01b
B13: Aerial Applications: | C13: ='C01c'!Dose_C -> 4.41e-08 | D13: ='C01c'!Dose_L -> 7.2e-10 | E13: ='C01c'!Dose_U -> 2.4e-07 | F13: C01c

Sheet E02
A1: Worksheet E01: Summary of Worker Hazard Quotients (Toxicity)
A2: Application Rate: | B2: ='A01'!ApRt_C -> 3e-06 | C2: lb a.e./acre | F2: E01aV5-3Wrkr
A3: Scenario | B3: Receptor | C3: Hazard Quotients | F3: Toxicity Value
C4: Central | D4: Lower | E4: Upper
A5: Accidental/Incidental Exposures
A6: Contaminated Gloves, 1 min. | B6: Worker | C6: No exposure assessment
A7: Contaminated Gloves, 1 hour | B7: Worker | C7: No exposure assessment
A8: Spill on Hands, 1 hour | B8: Worker | C8: No exposure assessment
A9: Spill on lower legs, 1 hour | B9: Worker | C9: No exposure assessment
A10: General Exposures
B11: Backpack Applications: | C11: ='C01a'!$C$36/$F$11 -> 0.04017857143 | D11: ='C01a'!$C$37/$F$11 -> 0.00137755102 | E11: ='C01a'!$C$38/$F$11 -> 0.2448979592 | F11: ='B02'!$E$5 -> 9.8e-07
B12: Ground Broadcast Applications: | C12: ='C01b'!$C$36/$F$12 -> 0.06857142857 | D12: ='C01b'!$C$37/$F$12 -> 0.002020408163 | E12: ='C01b'!$C$38/$F$12 -> 0.4628571429 | F12: ='B02'!$E$5 -> 9.8e-07
B13: Aerial Applications: | C13: ='C01c'!$C$36/$F$13 -> 0.045 | D13: ='C01c'!$C$37/$F$13 -> 0.0007346938776 | E13: ='C01c'!$C$38/$F$13 -> 0.2448979592 | F13: ='B02'!$E$5 -> 9.8e-07

Sheet E03
A1: Worksheet E03: Summary of Exposure Assessments for the General Public
A2: Application Rate: | B2: ='A01'!ApRt_C -> 3e-06 | C2: lb a.e./acre | F2: E03aV6
A3: Scenario | B3: Receptor | C3: mg/kg/day or mg/kg/event | F3: Detail Worksheet
C4: Central | D4: Lower | E4: Upper
A5: Accidental Acute Exposures (dose in mg/kg/event)
A6: Direct Spray of Child, whole body | B6: Child | C6: No exposure assessment
A7: Direct Spray of Woman, feet and lower legs | B7: Adult Female | C7: No exposure assessment
A8: Water consumption (spill) | B8: Child | C8: No exposure assessment
A9: Fish consumption (spill) | B9: Adult Male | C9: No exposure assessment
A10: Fish consumption (spill) | B10: Subsistence Populations | C10: No exposure assessment
A11: Non-Accidental Acute Exposures (dose in mg/kg/event)
A12: Vegetation Contact, shorts and T-shirt | B12: Adult Female | C12: No exposure assessment
A13: Contaminated Fruit | B13: Adult Female | C13: No exposure assessment
A14: Contaminated Vegetation | B14: Adult Female | C14: No exposure assessment
A15: Swimming, one hour | B15: Adult Female | C15: No exposure assessment
A16: Water consumption | B16: Child | C16: No exposure assessment
A17: Fish consumption | B17: Adult Male | C17: No exposure assessment
A18: Fish consumption | B18: Subsistence Populations | C18: No exposure assessment
A19: Chronic/Longer Term Exposures (dose in mg/kg/day)
A20: Contaminated Fruit | B20: Adult Female | C20: =D04a!Dose_C -> 3.58578888e-11 | D20: =D04a!Dose_L -> 1.639217774e-11 | E20: =D04a!Dose_U -> 5.68969562e-10 | F20: D04a
A21: Contaminated Vegetation | B21: Adult Female | C21: =D04b!Dose_C -> 4.93960713e-10 | D21: =D04b!Dose_L -> 3.430282729e-11 | E21: =D04b!Dose_U -> 4.116339275e-09 | F21: D04b
A22: Contaminate Tuber | B22: Adult Female | C22: =D04Soil!Dose_C -> 1.485648e-08 | D22: =D04Soil!Dose_L -> 1.4364e-08 | E22: =D04Soil!Dose_U -> 1.185176571e-07 | F22: D04Soil
A23: Water consumption | B23: Adult Male | C23: ='D07'!Dose_C -> 3.342857143e-11 | D23: ='D07'!Dose_L -> 2.4e-12 | E23: ='D07'!Dose_U -> 5.142857143e-10 | F23: D07
A24: Fish consumption | B24: Adult Male | C24: =D09a!Dose_C -> 3.342857143e-09 | D24: =D09a!Dose_L -> 3.428571429e-10 | E24: =D09a!Dose_U -> 4.285714286e-08 | F24: D09a
A25: Fish consumption | B25: Subsistence Populations | C25: =D09b!Dose_C -> 2.707714286e-08 | D25: =D09b!Dose_L -> 2.777142857e-09 | E25: =D09b!Dose_U -> 3.471428571e-07 | F25: D09b

Sheet E04
A1: Worksheet E03: Summary of Hazard Quotients (Toxicity) for the General Public
A2: Application Rate: | B2: ='A01'!ApRt_C -> 3e-06 | C2: lb a.e./acre | F2: E03aV6
A3: Scenario | B3: Receptor | C3: Hazard Quotients | F3: Toxicity Value
C4: Central | D4: Lower | E4: Upper
A5: Accidental Acute Exposures (dose in mg/kg/event)
A6: Direct Spray of Child, whole body | B6: Child | C6: No exposure assessment
A7: Direct Spray of Woman, feet and lower legs | B7: Adult Female | C7: No exposure assessment
A8: Water consumption (spill) | B8: Child | C8: No exposure assessment
A9: Fish consumption (spill) | B9: Adult Male | C9: No exposure assessment
A10: Fish consumption (spill) | B10: Subsistence Populations | C10: No exposure assessment
A11: Non-Accidental Acute Exposures (dose in mg/kg/event)
A12: Vegetation Contact, shorts and T-shirt | B12: Adult Female | C12: No exposure assessment
A13: Contaminated Fruit | B13: Adult Female | C13: No exposure assessment
A14: Contaminated Vegetation | B14: Adult Female | C14: No exposure assessment
A15: Swimming, one hour | B15: Adult Female | C15: No exposure assessment
A16: Water consumption | B16: Child | C16: No exposure assessment
A17: Fish consumption | B17: Adult Male | C17: No exposure assessment
A18: Fish consumption | B18: Subsistence Populations | C18: No exposure assessment
A19: Chronic/Longer Term Exposures (dose in mg/kg/day)
A20: Contaminated Fruit | B20: Adult Female | C20: =D04a!$C$19/$F$20 -> 3.658968245e-05 | D20: =D04a!$C$20/$F$20 -> 1.672671198e-05 | E20: =D04a!$C$21/$F$20 -> 0.0005805811858 | F20: ='B02'!$E$5 -> 9.8e-07
A21: Contaminated Vegetation | B21: Adult Female | C21: =D04b!$C$19/$F$21 -> 0.0005040415439 | D21: =D04b!$C$20/$F$21 -> 3.500288499e-05 | E21: =D04b!$C$21/$F$21 -> 0.004200346199 | F21: ='B02'!$E$5 -> 9.8e-07
A22: Contaminated Tuber | B22: Adult Female | C22: =D04Soil!Dose_C/F22 -> 0.01515967347 | D22: =D04Soil!Dose_L/F22 -> 0.01465714286 | E22: =D04Soil!Dose_U/F22 -> 0.1209363848 | F22: ='B02'!$E$5 -> 9.8e-07
A23: Water consumption | B23: Adult Male | C23: ='D07'!$C$17/$F$23 -> 3.411078717e-05 | D23: ='D07'!$C$18/$F$23 -> 2.448979592e-06 | E23: ='D07'!$C$19/$F$23 -> 0.0005247813411 | F23: ='B02'!$E$5 -> 9.8e-07
A24: Fish consumption | B24: Adult Male | C24: =D09a!$C$31/$F$24 -> 0.003411078717 | D24: =D09a!$C$32/$F$24 -> 0.0003498542274 | E24: =D09a!$C$33/$F$24 -> 0.04373177843 | F24: ='B02'!$E$5 -> 9.8e-07
A25: Fish consumption | B25: Subsistence Populations | C25: =D09b!$C$31/$F$25 -> 0.02762973761 | D25: =D09b!$C$32/$F$25 -> 0.002833819242 | E25: =D09b!$C$33/$F$25 -> 0.3542274052 | F25: ='B02'!$E$5 -> 9.8e-07

Sheet References
A1: References cited in workbook
A2: Citation | B2: Full Reference
A3: Boxenbaum and D’Souza 1990 | B3: Boxenbaum J; D'Souza R. 1990. Interspecies pharmacokinetic scaling, biological design and neoteny. Adv. Drug Res. 19: 139-195.
A4: Budavari 1989 | B4: Budavari S. (Ed). 1989. The Merck Index: An Encyclopedia of Chemicals, Drugs,and Biologicals, 11th ed. Merck & Co., Inc., Rahway, New Jersey.
A5: Burnmaster 1998 | B5: Burnmaster DE. 1998. Lognormal distribution for total water intake and tap water intake by pregnant and lactating women in the United States. Risk Analysis. 18(5): 215-219
A6: Default | B6: These are plausible default values that are typically used in SERA risk assessments.
A7: Dunning 1993 | B7: Dunning JB. 1993. CRC Handbook of Avian Body Masses. CRC Press, Boca Raton FL, 371 pp.
A8: Durkin et al. 1995 | B8: Durkin PR; Rubin L; Withey J; Meylan W. 1995. Methods of assessing dermal absorption with emphasis on uptake from contaminated vegetation. Toxicol. Indust. Health. 11(1): 63-79.
A9: Fletcher et al. 1994 | B9: Fletcher JS; Nellessen JE; Pfleeger TG. 1994. Literature review and evaluation of the EPA food-chain (Kenega) nomogram, an instrument for estimating pesticide residues on plants. Environ. Toxicol. Chem. 13(9):1383-1391.
A10: Harris and Solomon 1992 | B10: Harris SA; Solomon KR. 1992. Human exposure to 2,4-D following controlled activities on recently sprayed turf. J. Environ. Sci. Health. B27(1): 9-22.
A11: Hoerger and Kenaga 1972 | B11: Hoerger F; Kenaga EE. 1972. Pesticide residues on plants: Correlation of representative data as a basis for estimation of their magnitude in the environment. In: Environmental Quality and Safety, Volume I: Global Aspects of Toxicology and Technology as Applied to the Environment. F. Coulston and F. Kerte (eds.). Academic Press, New York, NY. pp. 9-28.
A12: Humphery and Dykes 2008 | B12: Humphrey JAC; Dykes ES. 2008. Thermal energy conduction in a honey bee comb due to cell-heating bees. J Theoretical Biology. 250 (1): 194-208.
A13: ICRP 1975 | B13: ICRP (International Commission on Radiologic Protection). 1975. Report of the Task Group on Reference Man. Recommendations of the International Commission on Radiological Protection (ICRP) Publ. No. 23. Pergamon Press, New York, NY.
A14: Knisel et al. 1992 | B14: Knisel WG; Davis FM; Leonard RA. 1992. GLEAMS Version 2.0 User Manual. U.S. Department of Agriculture, Agricultural Research Service, Southeast Watershed Research Laboratory, Tifton, GA. 202pp
A15: Manugistics 1995 | B15: Manugistics. 1995. Statgraphics Plus for Windows. Version 3. Available from Manugistics, Inc. Rockville, Maryland.
A16: Mason and Johnson 1987 | B16: Mason RW; Johnson BL. 1987. Ergonomic factors in chemical hazard control. In: Handbook of Human Factors. Salveny, G; ed. John Wiley and Sons, New York, NY. pp. 772-741.
A17: Mendenhall and Scheaffer 1973 | B17: Mendenhall W; Scheaffer RF. 1973. Mathematical Statistics with Applications. Duxbury Press, North Scituate, Massachusetts. 461 pp. plus appendices.
A18: N/A | B18: Not applicable
A19: Nagy 2005 | B19: Nagy KA. 2005. Field metabolic rate and body size. Journal of Experimental Biology. 208: 1621-1625.
A20: Ratnapalan et al. 2003 | B20: Ratnapalan S; Potylitsina Y; Tan LH; Roifman M; Koren G. 2003. Measuring a toddler's mouthful: toxicologic considerations. J Pediatr. 142(6):729-30.
A21: Reichle et al. 1973 | B21: Reichle DE, Goldstein RA; Van Hook RI; Dodson DJ. 1973. Analysis of Insect Consumption in a Forest Canopy. Ecology. 54: 1076-1084.
A22: Reid 2006 | B22: Reid FA. 2006. A Field Guide to Mammals of North America North of Mexico. Fourth Edition. The Peterson Field Guide Series. Houghton Mifflin Company, Boston MA. 570 pp.
A23: Ruffle et al. 1994 | B23: Ruffle B; Burmaster DE; Anderson PD; Gordon HD. 1994. Lognormal distributions for fish consumption by the general U.S. population. Risk Analy. 14(4): 395-404.
A24: SERA 1997 | B24: SERA (Syracuse Environmental Research Associates, Inc.). 1997. Reevaluation of Methods for Assessing Worker Exposure to Pesticides, SERA TR 96-21-08-01, draft dated December 31, 1997. Prepared under USDA/FS Contract 53-3187-5-12. Syracuse Environmental Research Associates, Inc., Fayetteville, NY.
A25: SERA 2005 | B25: SERA (Syracuse Environmental Research Associates, Inc.). 2005. Hexazinone - Human Health and Ecological Risk Assessment– Final Report, SERA SERA TR 05-43-20-03d, Final Report dated October 25, 2005. Available at: http://www.fs.fed.us/foresthealth/pesticide/risk.shtml.
A26: SERA 2007 | B26: SERA (Syracuse Environmental Research Associates, Inc.). 2007. Preparation of Environmental Documentation and Risk Assessments, SERA MD 2007-01a, draft dated July 2001. Syracuse Environmental Research Associates, Inc., Fayetteville, NY. Available at www.sera-inc.com.
A27: SERA 2010 | B27: SERA (Syracuse Environmental Research Associates, Inc.). 2010. Strychnine Human Health and Ecological Risk Assessment, SERA TR-052-17-02a, draft dated February 22, 2010. Syracuse Environmental Research Associates, Inc., Manlius, NY. Available at www.sera-inc.com.
A28: Sibley 2000 | B28: Sibley DA. 2000. The Sibley Guide to Birds. National Audubon Society, Chanticleer Press Edition. Alfred A. Knopf Inc., New York. 545 pp.
A29: Teske et al. 2001 | B29: Teske ME; Bird SL; Esterly DM; Ray SL; Perry SG. 2001. A User’s Guide for AgDRIFT 2.0: A Tiered Approach for the Assesment of Spray Drift. Continuum Dynamics, Inc. Public Use Version. C.D.I. Report No. 01-01. Available, with executable model at: http://www.agdrift.com
A30: U.S. EPA/OPP 1999 | B30: U.S. EPA/OPP ((U.S. Environmental Protection Agency/Office of Pesticide Programs). 1999. ECOFRAM: Terrestrial ECOFRAM Terrestrial Draft Report. Ecological Committee on FIFRA Risk Assessment Methods(ECOFRAM). Report dated May 10, 1999. Available at: http://www.epa.gov/oppefed1/ ecorisk/terrreport.pdf.
A31: U.S. EPA/ORD 1985 | B31: U.S. EPA/ORD (U.S. Environmental Protection Agency/Office of Research and Development). 1985. Development of Statistical Distributions or Ranges of Standard Factors Used in Exposure Assessments, Report prepared by GCA Corp., Chapel Hill. Available from NTIS: PB85-242667.
A32: U.S. EPA/ORD 1992 | B32: U.S. EPA/ORD (U.S. Environmental Protection Agency/Office of Research and Development). 1992. Dermal Exposure Assessment: Principles and Applications. EPA/600/8-91/011B. Interim Report. Exposure Assessment Group, Office of Health and Environmental Assessment, Washington, DC.
A33: U.S. EPA/ORD 1993 | B33: U.S. EPA/ORD (U.S. Environmental Protection Agency/Office of Research and Development). 1993. Wildlife Exposure Factors Handbook. Volumes 1 and 2. EPA/600/R-93/187a,b. Pagination not continuous. Available NTIS: PB94-174778 and PB94-174779.
A34: U.S. EPA/ORD 1996 | B34: U.S. EPA (U.S. Environmental Protection Agency/Office of Research and Development). 1996. Exposure Factors Handbook. National Center for Environmental Assessment, U.S. EPA, Washington, DC. EPA/600/P-95/002Ba-c. Avail. NTIS: PB97-117683, 97-117691, PB97-117709.
A35: U.S. EPA/ORD 1997 | B35: U.S. EPA (U.S. Environmental Protection Agency/Office of Research and Development). 1996. Exposure Factors Handbook. National Center for Environmental Assessment, U.S. EPA, Washington, DC. EPA/600/P-95/002Fa. Available at: http://rais.ornl.gov/homepage/EFH_Final_1997_EPA600P95002Fa.pdf
A36: USDA 1989a | B36: USDA (U.S. Department of Agriculture/Forest Service). 1989a. Final Environmental Impact Statement: Vegetation Management in the Coastal Plain/Piedmont, Management Bulletin R8-MB-23, dated January, 1989. 1213 pp.
A37: USDA 1989b | B37: USDA (U.S. Department of Agriculture/Forest Service). 1989b. Draft Environmental Impact Statement: Vegetation Management in the Ozark/Ouachita Mountains, Management Bulletin R8-MB-23, dated June, 1989. 499 pp.
A38: USDA 1989c | B38: USDA (U.S. Department of Agriculture/Forest Service). 1989c. Final Environmental Impact Statement: Vegetation Management in the Appalachian Mountains, Management Bulletin R8-MB-38, dated July, 1989. 1104 pp.
A39: Waldbauer 1968 | B39: Waldbauer GP. 1968. The consumption and utilization of food by insects. Advan Insect Physiol. 5: 229-288
A40: Winston 1987 | B40: Winston ML. 1987. The Biology of the Honey Bee. Harvard University Press, Cambridge, MA. ISBN 0-674-07409-2 280 pp.
A41: Wolfram Research 1997 | B41: Wolfram Research. 1997. Mathematica Version 3.0.1. Available from Wolfram Research, Inc. Champaign, IL.

Sheet PlntRunoV5 (hidden)
A1: Summary of Exposure Assessment and Risk Characterization for Terrestrial Plants from Runoff
A2: Short Title | B2: Runoff to terrestrial plants
A3: Receptor | B3: Terrestrial vegetation
A4: Duration | B4: Acute
A5: User-Specified Gleams-Driver File | B5: None
A6: Parameter/Assumption | B6: Code / Range | C6: Value | D6: Units | E6: Reference
A7: Worksheet Application Rate | B7: ApRtWB | C7: 0.2 | D7: lb/acre | E7: Prog!ApRt
A8: Offsite Application Rates Inputs
A9: Run ID: | B9: See Risk Assessment
A10: Application Rate Used in Run: | B10: ApRtRun | C10: 1 | D10: lb/acre
A11: Functional Off-site Application Rate | B11: ApRtOffsite
B12: Central | C12: 0.027 | D12: lb/acre
B13: Lower | C13: 0.0095
B14: Upper | C14: 0.057
A15: Calculated Values
A16: Normalized Off-site Functional Application Rate | B16: NormApRtOffsite | C16: ApRtOffsite / ApRtRun
B17: Central | C17: =C12/C$10 -> 0.027 | D17: Unitless | E17: Eq
B18: Lower | C18: =C13/C$10 -> 0.0095 | E18: Eq
B19: Upper | C19: =C14/C$10 -> 0.057 | E19: Eq
A20: Off-site Application Rate at Workbook Application Rate | B20: ApRtWB | C20: ApRtWB x NormApRtOffsite
B21: Central | C21: =C17*C$7 -> 0.0054 | D21: lb/acre | E21: Eq
B22: Lower | C22: =C18*C$7 -> 0.0019 | E22: Eq
B23: Upper | C23: =C19*C$7 -> 0.0114 | E23: Eq
A24: Toxicity Values (seedling emergence) in units of lbs/acre
C25: Sensitive | D25: Tolerant
B26: Endpoint
C27: 0.0037 | D27: 0.37
A28: Hazard Quotients
B29: Central | C29: =IF(ISNUMBER(C$27), $C21/C$27, "N/A") -> 1.459459459 | D29: 0.01459459459
B30: Lower | C30: 0.5135135135 | D30: 0.005135135135
B31: Upper | C31: 3.081081081 | D31: 0.03081081081
